Publisher Label,Publisher URI,"Supplier ID","Supplier","Invoice No.","Amount £","Purpose","Transaction Number","Payment Date","Organisational Unit","Cost Centre(T)","Internal Category Number"
"Wolverhampton City Council","http://opendatacommunities.org/id/metropolitan-district-council/wolverhampton","708251","Total Gas & Power Limited","185437213","401.70","Electricity","190565679","22/02/2019","Corporate Asset Management","Central Utilities to Recharge","R2100"
"Wolverhampton City Council","http://opendatacommunities.org/id/metropolitan-district-council/wolverhampton","708251","Total Gas & Power Limited","183953269","14.81","Electricity","190556837","01/02/2019","Corporate Asset Management","Central Utilities to Recharge","R2100"
"Wolverhampton City Council","http://opendatacommunities.org/id/metropolitan-district-council/wolverhampton","708251","Total Gas & Power Limited","183789424","19.62","Electricity","190556878","01/02/2019","Corporate Asset Management","Central Utilities to Recharge","R2100"
"Wolverhampton City Council","http://opendatacommunities.org/id/metropolitan-district-council/wolverhampton","708251","Total Gas & Power Limited","184016530","482.89","Electricity","190556648","01/02/2019","Corporate Asset Management","Central Utilities to Recharge","R2100"
"Wolverhampton City Council","http://opendatacommunities.org/id/metropolitan-district-council/wolverhampton","708251","Total Gas & Power Limited","183788874","23.60","Electricity","190556651","01/02/2019","Corporate Asset Management","Central Utilities to Recharge","R2100"
"Wolverhampton City Council","http://opendatacommunities.org/id/metropolitan-district-council/wolverhampton","708251","Total Gas & Power Limited","183982507","23.37","Electricity","190556859","01/02/2019","Corporate Asset Management","Central Utilities to Recharge","R2100"
"Wolverhampton City Council","http://opendatacommunities.org/id/metropolitan-district-council/wolverhampton","708251","Total Gas & Power Limited","183954248","14.81","Electricity","190556721","01/02/2019","Corporate Asset Management","Central Utilities to Recharge","R2100"
"Wolverhampton City Council","http://opendatacommunities.org/id/metropolitan-district-council/wolverhampton","708251","Total Gas & Power Limited","183789600","19.35","Electricity","190556729","01/02/2019","Corporate Asset Management","Central Utilities to Recharge","R2100"
"Wolverhampton City Council","http://opendatacommunities.org/id/metropolitan-district-council/wolverhampton","708251","Total Gas & Power Limited","185493324","449.87","Electricity","190565499","22/02/2019","Corporate Asset Management","Central Utilities to Recharge","R2100"
"Wolverhampton City Council","http://opendatacommunities.org/id/metropolitan-district-council/wolverhampton","708251","Total Gas & Power Limited","183789468","508.38","Electricity","190556889","01/02/2019","Corporate Asset Management","Central Utilities to Recharge","R2100"
"Wolverhampton City Council","http://opendatacommunities.org/id/metropolitan-district-council/wolverhampton","708251","Total Gas & Power Limited","183970572","17.46","Electricity","190556817","01/02/2019","Corporate Asset Management","Central Utilities to Recharge","R2100"
"Wolverhampton City Council","http://opendatacommunities.org/id/metropolitan-district-council/wolverhampton","708251","Total Gas & Power Limited","182637999","25.47","Electricity","190556619","01/02/2019","Waste and Recycling Service","Anchor Lane Civic Amenity Site","R2100"
"Wolverhampton City Council","http://opendatacommunities.org/id/metropolitan-district-council/wolverhampton","708251","Total Gas & Power Limited","183981363","546.42","Electricity","190556620","01/02/2019","Corporate Asset Management","Central Utilities to Recharge","R2100"
"Wolverhampton City Council","http://opendatacommunities.org/id/metropolitan-district-council/wolverhampton","708251","Total Gas & Power Limited","183789303","453.06","Electricity","190556649","01/02/2019","Corporate Asset Management","Central Utilities to Recharge","R2100"
"Wolverhampton City Council","http://opendatacommunities.org/id/metropolitan-district-council/wolverhampton","708251","Total Gas & Power Limited","183981440","558.44","Electricity","190556610","01/02/2019","Housing Revenue Account","Hostels / Outreach","R2100"
"Wolverhampton City Council","http://opendatacommunities.org/id/metropolitan-district-council/wolverhampton","708251","Total Gas & Power Limited","183970011","506.16","Electricity","190556675","01/02/2019","Schools","Christ Church (Church of England) Junior School","R2100"
"Wolverhampton City Council","http://opendatacommunities.org/id/metropolitan-district-council/wolverhampton","708251","Total Gas & Power Limited","184017322","455.16","Electricity","190556735","01/02/2019","Corporate Asset Management","Central Utilities to Recharge","R2100"
"Wolverhampton City Council","http://opendatacommunities.org/id/metropolitan-district-council/wolverhampton","708251","Total Gas & Power Limited","183953522","520.80","Electricity","190556641","01/02/2019","Schools","Bilston Nursery","R2100"
"Wolverhampton City Council","http://opendatacommunities.org/id/metropolitan-district-council/wolverhampton","708251","Total Gas & Power Limited","183779040","29.62","Electricity","190556829","01/02/2019","Corporate Asset Management","Central Utilities to Recharge","R2100"
"Wolverhampton City Council","http://opendatacommunities.org/id/metropolitan-district-council/wolverhampton","708251","Total Gas & Power Limited","183954446","598.93","Electricity","190556819","01/02/2019","Schools","St Patrick�s Catholic Primary School","R2100"
"Wolverhampton City Council","http://opendatacommunities.org/id/metropolitan-district-council/wolverhampton","708251","Total Gas & Power Limited","183788797","28.37","Electricity","190556803","01/02/2019","Corporate Asset Management","Central Utilities to Recharge","R2100"
"Wolverhampton City Council","http://opendatacommunities.org/id/metropolitan-district-council/wolverhampton","708251","Total Gas & Power Limited","183789589","522.53","Electricity","190556615","01/02/2019","Corporate Asset Management","Central Utilities to Recharge","R2100"
"Wolverhampton City Council","http://opendatacommunities.org/id/metropolitan-district-council/wolverhampton","708251","Total Gas & Power Limited","182666071","30.15","Electricity","190556696","01/02/2019","Corporate Asset Management","Central Utilities to Recharge","R2100"
"Wolverhampton City Council","http://opendatacommunities.org/id/metropolitan-district-council/wolverhampton","708251","Total Gas & Power Limited","183788808","526.06","Electricity","190556868","01/02/2019","Corporate Asset Management","Central Utilities to Recharge","R2100"
"Wolverhampton City Council","http://opendatacommunities.org/id/metropolitan-district-council/wolverhampton","708251","Total Gas & Power Limited","183982133","26.35","Electricity","190556759","01/02/2019","Corporate Asset Management","Central Utilities to Recharge","R2100"
"Wolverhampton City Council","http://opendatacommunities.org/id/metropolitan-district-council/wolverhampton","708251","Total Gas & Power Limited","160910766","171.21","Electricity","190566503","27/02/2019","Corporate Asset Management","Central Utilities to Recharge","R2100"
"Wolverhampton City Council","http://opendatacommunities.org/id/metropolitan-district-council/wolverhampton","708251","Total Gas & Power Limited","163170562","179.09","Electricity","190566506","27/02/2019","Corporate Asset Management","Central Utilities to Recharge","R2100"
"Wolverhampton City Council","http://opendatacommunities.org/id/metropolitan-district-council/wolverhampton","708251","Total Gas & Power Limited","182638000","22.37","Electricity","190556685","01/02/2019","Waste and Recycling Service","Waste Man.Partnership-Transfer Station","R2100"
"Wolverhampton City Council","http://opendatacommunities.org/id/metropolitan-district-council/wolverhampton","708251","Total Gas & Power Limited","183953710","25.61","Electricity","190556877","01/02/2019","Corporate Asset Management","Central Utilities to Recharge","R2100"
"Wolverhampton City Council","http://opendatacommunities.org/id/metropolitan-district-council/wolverhampton","708280","Trade UK (Was Screwfix Direct Limited)","0944271766 - Screwfix","168.40","R&M - Departmental planned (external)","130244872","22/02/2019","Schools","Whitgreave Infant School","R2001"
"Wolverhampton City Council","http://opendatacommunities.org/id/metropolitan-district-council/wolverhampton","708295","Trapeze Group (UK) Limited","INV0086160","4,940.19","Materials","190558954","06/02/2019","Fleet Services","Fleet Management","R4007"
"Wolverhampton City Council","http://opendatacommunities.org/id/metropolitan-district-council/wolverhampton","708301","Treasured Memories Limited","22046","101.90","Materials","130242812","06/02/2019","Bereavement Services","Crematorium","R4007"
"Wolverhampton City Council","http://opendatacommunities.org/id/metropolitan-district-council/wolverhampton","708321","Trinity College London","1-1333010782","1,582.00","Exam Expenses (Non-Employee)","130245331","27/02/2019","School Planning & Resources","Music Support Team","R4630"
"Wolverhampton City Council","http://opendatacommunities.org/id/metropolitan-district-council/wolverhampton","708339","Trowers & Hamlins Llp","2802089","12,721.74","Services - Professional Fees","130243509","15/02/2019","City Development","Strategic Asset Management - Bilston Town Centre Regen","R4400"
"Wolverhampton City Council","http://opendatacommunities.org/id/metropolitan-district-council/wolverhampton","708339","Trowers & Hamlins Llp","2802089","89.00","Services - Professional Fees","130243509","15/02/2019","City Development","Strategic Asset Management - Bilston Town Centre Regen","R4400"
"Wolverhampton City Council","http://opendatacommunities.org/id/metropolitan-district-council/wolverhampton","708339","Trowers & Hamlins Llp","2803975","1,049.87","Services - Professional Fees","130243510","20/02/2019","School Planning & Resources","PFI Scheme - Heath Park & St Matthias","R4400"
"Wolverhampton City Council","http://opendatacommunities.org/id/metropolitan-district-council/wolverhampton","708339","Trowers & Hamlins Llp","2794071","3,660.36","Acquisition of Land and Buildings","130244323","15/02/2019","-","Black Country Growth Deal � Cultural Programme","C1000"
"Wolverhampton City Council","http://opendatacommunities.org/id/metropolitan-district-council/wolverhampton","708354","TTS Group Limited","DE5581307","159.95","Equipment - Purchase","130242813","20/02/2019","Special Educational Needs","SEN Sensory Inclusion","R4000"
"Wolverhampton City Council","http://opendatacommunities.org/id/metropolitan-district-council/wolverhampton","708356","Tudor Environmental","IN0005930","45.60","Materials","130244324","20/02/2019","Bereavement Services","Bereavement services - Grounds maintenance","R4007"
"Wolverhampton City Council","http://opendatacommunities.org/id/metropolitan-district-council/wolverhampton","708356","Tudor Environmental","IN0005930","20.95","Materials","130244324","20/02/2019","Bereavement Services","Bereavement services - Grounds maintenance","R4007"
"Wolverhampton City Council","http://opendatacommunities.org/id/metropolitan-district-council/wolverhampton","708356","Tudor Environmental","IN0005930","7.58","Materials","130244324","20/02/2019","Bereavement Services","Bereavement services - Grounds maintenance","R4007"
"Wolverhampton City Council","http://opendatacommunities.org/id/metropolitan-district-council/wolverhampton","708356","Tudor Environmental","IN0005930","38.78","Materials","130244324","20/02/2019","Bereavement Services","Bereavement services - Grounds maintenance","R4007"
"Wolverhampton City Council","http://opendatacommunities.org/id/metropolitan-district-council/wolverhampton","708356","Tudor Environmental","IN0005930","87.18","Materials","130244324","20/02/2019","Bereavement Services","Bereavement services - Grounds maintenance","R4007"
"Wolverhampton City Council","http://opendatacommunities.org/id/metropolitan-district-council/wolverhampton","708356","Tudor Environmental","IN0005854","165.00","Materials","130244104","15/02/2019","Environmental Maintenance","Ground Maintenance East","R4007"
"Wolverhampton City Council","http://opendatacommunities.org/id/metropolitan-district-council/wolverhampton","708356","Tudor Environmental","234101","588.85","Materials","130242498","06/02/2019","Environmental Maintenance","Ground Maintenance East","R4007"
"Wolverhampton City Council","http://opendatacommunities.org/id/metropolitan-district-council/wolverhampton","708356","Tudor Environmental","233973","2,125.26","Materials","130242497","06/02/2019","Environmental Maintenance","Ground Maintenance East","R4007"
"Wolverhampton City Council","http://opendatacommunities.org/id/metropolitan-district-council/wolverhampton","708357","Tudor Medical Centre","M2018Q3.15SHIURFQ","100.00","TPP - Public Health Contracts","190557221","01/02/2019","Starting and Developing Well","Sexual Health","R5060"
"Wolverhampton City Council","http://opendatacommunities.org/id/metropolitan-district-council/wolverhampton","708357","Tudor Medical Centre","M2018Q315SHCIFBQ","160.00","TPP - Public Health Contracts","190557219","01/02/2019","Starting and Developing Well","Sexual Health","R5060"
"Wolverhampton City Council","http://opendatacommunities.org/id/metropolitan-district-council/wolverhampton","708357","Tudor Medical Centre","M2018Q315SHCIFIQ","550.00","TPP - Public Health Contracts","190557218","01/02/2019","Starting and Developing Well","Sexual Health","R5060"
"Wolverhampton City Council","http://opendatacommunities.org/id/metropolitan-district-council/wolverhampton","708357","Tudor Medical Centre","M2018Q315SHIUDFQ","600.00","TPP - Public Health Contracts","190557220","01/02/2019","Starting and Developing Well","Sexual Health","R5060"
"Wolverhampton City Council","http://opendatacommunities.org/id/metropolitan-district-council/wolverhampton","708358","Tunstall Healthcare (UK) Limited","3IN/10331162","1,683.00","Equipment - Purchase","130242500","20/02/2019","Independent Living Service","Telecare","R4000"
"Wolverhampton City Council","http://opendatacommunities.org/id/metropolitan-district-council/wolverhampton","708358","Tunstall Healthcare (UK) Limited","3IN/10331665","8,160.00","Equipment - Purchase","130243284","27/02/2019","Independent Living Service","Telecare","R4000"
"Wolverhampton City Council","http://opendatacommunities.org/id/metropolitan-district-council/wolverhampton","708374","Tyddyn Hen Limited","204298","302.07","Provisions (Not for resale)","130244105","27/02/2019","School Planning & Resources","Towers Outdoor Education Centre","R4101"
"Wolverhampton City Council","http://opendatacommunities.org/id/metropolitan-district-council/wolverhampton","708380","U.C.L.E.S.","101104128","217.50","Exam Expenses (Non-Employee)","130243511","08/02/2019","Adult Education","Discretionary Fund","R4630"
"Wolverhampton City Council","http://opendatacommunities.org/id/metropolitan-district-council/wolverhampton","708380","U.C.L.E.S.","101150971","1,812.00","Exam Expenses (Non-Employee)","130243683","13/02/2019","Adult Education","Advance Learner Loan","R4630"
"Wolverhampton City Council","http://opendatacommunities.org/id/metropolitan-district-council/wolverhampton","708402","Ulverscroft Large Print Books Limited","I631977","10.65","Books","130242501","20/02/2019","Local Economy","Global Budgets","R4309"
"Wolverhampton City Council","http://opendatacommunities.org/id/metropolitan-district-council/wolverhampton","708403","Underhill Langley & Wright","029151","750.00","Services - Professional Fees","190565169","22/02/2019","School Planning & Resources","Other Support Services","R4400"
"Wolverhampton City Council","http://opendatacommunities.org/id/metropolitan-district-council/wolverhampton","708403","Underhill Langley & Wright","029151-Disb","86.00","Services - Professional Fees","190565170","22/02/2019","School Planning & Resources","Other Support Services","R4400"
"Wolverhampton City Council","http://opendatacommunities.org/id/metropolitan-district-council/wolverhampton","708418","Univar Limited","91683618","292.11","Materials","130241019","06/02/2019","Leisure Services","Bert Williams Leisure Centre","R4007"
"Wolverhampton City Council","http://opendatacommunities.org/id/metropolitan-district-council/wolverhampton","708418","Univar Limited","91699504","296.61","Materials","130243285","27/02/2019","Leisure Services","Bert Williams Leisure Centre","R4007"
"Wolverhampton City Council","http://opendatacommunities.org/id/metropolitan-district-council/wolverhampton","708418","Univar Limited","91682562","295.20","Materials","130240760","06/02/2019","Leisure Services","Bert Williams Leisure Centre","R4007"
"Wolverhampton City Council","http://opendatacommunities.org/id/metropolitan-district-council/wolverhampton","708421","University Hospitals Birmingham","OP/T111264","8,115.00","TPP - Public Health Contracts","130228916","08/02/2019","Starting and Developing Well","Sexual Health","R5060"
"Wolverhampton City Council","http://opendatacommunities.org/id/metropolitan-district-council/wolverhampton","708435","University Of Wolverhampton","0253547-011","1,795.86","Training Expenses","130243906","13/02/2019","Public Service Reform","Workforce Development","R1650"
"Wolverhampton City Council","http://opendatacommunities.org/id/metropolitan-district-council/wolverhampton","708435","University Of Wolverhampton","45073728","250.00","Services - Professional Fees","130243512","13/02/2019","Public Health Business Management","Public Health Support Costs","R4400"
"Wolverhampton City Council","http://opendatacommunities.org/id/metropolitan-district-council/wolverhampton","708435","University Of Wolverhampton","0253547-010","598.62","Training Expenses","130243905","15/02/2019","Public Service Reform","Workforce Development","R1650"
"Wolverhampton City Council","http://opendatacommunities.org/id/metropolitan-district-council/wolverhampton","708435","University Of Wolverhampton","1231903-002","598.62","Training Expenses","130243907","15/02/2019","Public Service Reform","Workforce Development","R1650"
"Wolverhampton City Council","http://opendatacommunities.org/id/metropolitan-district-council/wolverhampton","708435","University Of Wolverhampton","9801615-001","1,795.86","Training Expenses","130243911","15/02/2019","Public Service Reform","Workforce Development","R1650"
"Wolverhampton City Council","http://opendatacommunities.org/id/metropolitan-district-council/wolverhampton","708435","University Of Wolverhampton","1632872-004","598.62","Training Expenses","130243908","15/02/2019","Public Service Reform","Workforce Development","R1650"
"Wolverhampton City Council","http://opendatacommunities.org/id/metropolitan-district-council/wolverhampton","708435","University Of Wolverhampton","1825021-001","598.62","Training Expenses","130243910","15/02/2019","Public Service Reform","Workforce Development","R1650"
"Wolverhampton City Council","http://opendatacommunities.org/id/metropolitan-district-council/wolverhampton","708435","University Of Wolverhampton","45071706","29.17","Education trips, Holidays, Outings & Activities","130242988","06/02/2019","Schools","West Park Primary School","R4970"
"Wolverhampton City Council","http://opendatacommunities.org/id/metropolitan-district-council/wolverhampton","708435","University Of Wolverhampton","1729911-002","1,795.86","Training Expenses","130243909","15/02/2019","Public Service Reform","Workforce Development","R1650"
"Wolverhampton City Council","http://opendatacommunities.org/id/metropolitan-district-council/wolverhampton","708439","Uow Corporate Services Limited","45051876","48.00","Room Hire","130171232","22/02/2019","Enterprise","Economic Development","R2201"
"Wolverhampton City Council","http://opendatacommunities.org/id/metropolitan-district-council/wolverhampton","708448","AECOM Infrastructure & Environment UK Ltd","28374580","309.52","Construction and Conversion","130240761","06/02/2019","-","Integrated Transport","C1100"
"Wolverhampton City Council","http://opendatacommunities.org/id/metropolitan-district-council/wolverhampton","708448","AECOM Infrastructure & Environment UK Ltd","28372593","4,053.54","Construction and Conversion","130238678","06/02/2019","-","GF - Accessing Growth Fund","C1100"
"Wolverhampton City Council","http://opendatacommunities.org/id/metropolitan-district-council/wolverhampton","708448","AECOM Infrastructure & Environment UK Ltd","28374172","377.48","Services - Professional Fees","130240307","06/02/2019","Transportation","Bridges & Subways","R4400"
"Wolverhampton City Council","http://opendatacommunities.org/id/metropolitan-district-council/wolverhampton","708448","AECOM Infrastructure & Environment UK Ltd","28374131","1,086.43","Construction and Conversion","130240130","06/02/2019","-","GF - Highway Structures (bridges, subways, retaining walls)","C1100"
"Wolverhampton City Council","http://opendatacommunities.org/id/metropolitan-district-council/wolverhampton","708448","AECOM Infrastructure & Environment UK Ltd","28375471","14,069.30","Services - Professional Fees","130241752","20/02/2019","Operation & Maintenance of Existing Network","Condition Surveys","R4400"
"Wolverhampton City Council","http://opendatacommunities.org/id/metropolitan-district-council/wolverhampton","708448","AECOM Infrastructure & Environment UK Ltd","28374652","2,536.75","Services - Professional Fees","130241020","20/02/2019","Operation & Maintenance of Existing Network","Condition Surveys","R4400"
"Wolverhampton City Council","http://opendatacommunities.org/id/metropolitan-district-council/wolverhampton","708448","AECOM Infrastructure & Environment UK Ltd","28375577","3,190.20","Construction and Conversion","130241904","20/02/2019","-","Safety Programme","C1100"
"Wolverhampton City Council","http://opendatacommunities.org/id/metropolitan-district-council/wolverhampton","708448","AECOM Infrastructure & Environment UK Ltd","28375580","2,625.08","Construction and Conversion","130241905","20/02/2019","-","Safety Programme","C1100"
"Wolverhampton City Council","http://opendatacommunities.org/id/metropolitan-district-council/wolverhampton","708448","AECOM Infrastructure & Environment UK Ltd","28375573","4,894.65","Construction and Conversion","130241902","20/02/2019","-","Safety Programme","C1100"
"Wolverhampton City Council","http://opendatacommunities.org/id/metropolitan-district-council/wolverhampton","708448","AECOM Infrastructure & Environment UK Ltd","28375569","3,608.48","Construction and Conversion","130241900","20/02/2019","-","Safety Programme","C1100"
"Wolverhampton City Council","http://opendatacommunities.org/id/metropolitan-district-council/wolverhampton","708448","AECOM Infrastructure & Environment UK Ltd","28375585","5,212.16","Construction and Conversion","130241907","20/02/2019","-","Transport Structual Maintenance","C1100"
"Wolverhampton City Council","http://opendatacommunities.org/id/metropolitan-district-council/wolverhampton","708448","AECOM Infrastructure & Environment UK Ltd","28375586","3,668.50","Construction and Conversion","130241908","20/02/2019","-","GF - Accessing Growth Fund","C1100"
"Wolverhampton City Council","http://opendatacommunities.org/id/metropolitan-district-council/wolverhampton","708448","AECOM Infrastructure & Environment UK Ltd","28374582","1,432.56","Construction and Conversion","130240552","27/02/2019","-","GF - Accessing Growth Fund","C1100"
"Wolverhampton City Council","http://opendatacommunities.org/id/metropolitan-district-council/wolverhampton","708448","AECOM Infrastructure & Environment UK Ltd","28375582","1,650.24","Construction and Conversion","130241906","20/02/2019","-","GF - Accessing Growth Fund","C1100"
"Wolverhampton City Council","http://opendatacommunities.org/id/metropolitan-district-council/wolverhampton","708448","AECOM Infrastructure & Environment UK Ltd","28375571","1,272.05","Services - Professional Fees","130241901","20/02/2019","City Development","Bilston Public Open Space (ERDF)","R4400"
"Wolverhampton City Council","http://opendatacommunities.org/id/metropolitan-district-council/wolverhampton","708448","AECOM Infrastructure & Environment UK Ltd","28375575","1,128.57","Construction and Conversion","130241903","20/02/2019","-","GF - Blue Network","C1100"
"Wolverhampton City Council","http://opendatacommunities.org/id/metropolitan-district-council/wolverhampton","708448","AECOM Infrastructure & Environment UK Ltd","28374629","7,906.26","Services - Professional Fees","130240762","27/02/2019","Black Country Transport","Black Country Transport Director","R4400"
"Wolverhampton City Council","http://opendatacommunities.org/id/metropolitan-district-council/wolverhampton","708448","AECOM Infrastructure & Environment UK Ltd","28374653","11,021.00","Construction and Conversion","130241021","08/02/2019","-","GF - Accessing Growth Fund","C1100"
"Wolverhampton City Council","http://opendatacommunities.org/id/metropolitan-district-council/wolverhampton","708448","AECOM Infrastructure & Environment UK Ltd","28374662","6,133.04","Construction and Conversion","130240763","08/02/2019","-","GF - Interchange - Ph2 Train Station/MSCP/Metro Extension","C1100"
"Wolverhampton City Council","http://opendatacommunities.org/id/metropolitan-district-council/wolverhampton","708448","AECOM Infrastructure & Environment UK Ltd","28374339","3,125.04","Services - Professional Fees","130240422","06/02/2019","Black Country Transport","Black Country Transport Director","R4400"
"Wolverhampton City Council","http://opendatacommunities.org/id/metropolitan-district-council/wolverhampton","708448","AECOM Infrastructure & Environment UK Ltd","28377097","3,450.00","Services - Professional Fees","130243057","27/02/2019","Operation & Maintenance of Existing Network","Condition Surveys","R4400"
"Wolverhampton City Council","http://opendatacommunities.org/id/metropolitan-district-council/wolverhampton","708448","AECOM Infrastructure & Environment UK Ltd","28374129","31,776.82","Services - Professional Fees","130240129","06/02/2019","Transportation","Bridges & Subways","R4400"
"Wolverhampton City Council","http://opendatacommunities.org/id/metropolitan-district-council/wolverhampton","708448","AECOM Infrastructure & Environment UK Ltd","28374387","3,020.44","Construction and Conversion","130240424","06/02/2019","-","GF - Accessing Growth Fund","C1100"
"Wolverhampton City Council","http://opendatacommunities.org/id/metropolitan-district-council/wolverhampton","708448","AECOM Infrastructure & Environment UK Ltd","28374128","1,363.63","Construction and Conversion","130240128","06/02/2019","-","Integrated Transport","C1100"
"Wolverhampton City Council","http://opendatacommunities.org/id/metropolitan-district-council/wolverhampton","708448","AECOM Infrastructure & Environment UK Ltd","28374386","1,847.58","Construction and Conversion","130240423","06/02/2019","-","GF - Accessing Growth Fund","C1100"
"Wolverhampton City Council","http://opendatacommunities.org/id/metropolitan-district-council/wolverhampton","708449","Ustigate Limited","0000005675","1,210.00","R&M - Departmental planned (external)","130242208","22/02/2019","Environmental Maintenance","Fountain Maintenance","R2001"
"Wolverhampton City Council","http://opendatacommunities.org/id/metropolitan-district-council/wolverhampton","708467","Valuation Office Agency","25000091482018","1,000.00","Services - Professional Fees","130242360","20/02/2019","Corporate Accounts","Corporate Budgets","R4400"
"Wolverhampton City Council","http://opendatacommunities.org/id/metropolitan-district-council/wolverhampton","708481","Venue Catering Partner Limited","35089","287.50","Room Hire","130243687","27/02/2019","Healthy Life Expectancy","Healthy Life Expectancy","R2201"
"Wolverhampton City Council","http://opendatacommunities.org/id/metropolitan-district-council/wolverhampton","708481","Venue Catering Partner Limited","35089","118.54","Equipment - Hire","130243687","27/02/2019","Healthy Life Expectancy","Healthy Life Expectancy","R4001"
"Wolverhampton City Council","http://opendatacommunities.org/id/metropolitan-district-council/wolverhampton","708481","Venue Catering Partner Limited","35089","120.84","Catering","130243687","27/02/2019","Healthy Life Expectancy","Healthy Life Expectancy","R4100"
"Wolverhampton City Council","http://opendatacommunities.org/id/metropolitan-district-council/wolverhampton","708483","Veolia ES Landfill Limited","OP/I537503","917.60","TPP - Recycling Contract","130241025","01/02/2019","Waste and Recycling Service","Waste Collection and Recycling Service - General","R5004"
"Wolverhampton City Council","http://opendatacommunities.org/id/metropolitan-district-council/wolverhampton","708483","Veolia ES Landfill Limited","OP/I535998","2,705.60","TPP - Recycling Contract","130241023","06/02/2019","Waste and Recycling Service","Waste Collection and Recycling Service - General","R5004"
"Wolverhampton City Council","http://opendatacommunities.org/id/metropolitan-district-council/wolverhampton","708483","Veolia ES Landfill Limited","OP/I535996","1,192.80","TPP - Recycling Contract","130241022","06/02/2019","Waste and Recycling Service","Waste Collection and Recycling Service - General","R5004"
"Wolverhampton City Council","http://opendatacommunities.org/id/metropolitan-district-council/wolverhampton","708483","Veolia ES Landfill Limited","OP/I536000","14,032.80","TPP - Recycling Contract","130238049","06/02/2019","Waste and Recycling Service","Waste Collection and Recycling Service - General","R5004"
"Wolverhampton City Council","http://opendatacommunities.org/id/metropolitan-district-council/wolverhampton","708483","Veolia ES Landfill Limited","OP/I537499","1,417.60","TPP - Waste Disposal","130241024","01/02/2019","Environmental Maintenance","Ground Maintenance East","R5003"
"Wolverhampton City Council","http://opendatacommunities.org/id/metropolitan-district-council/wolverhampton","708484","Verifone Services UK&Ireland Limited","7501024015","39.98","R&M - Departmental planned (internal)","130241409","13/02/2019","Adult Education","Foyer Building","R2000"
"Wolverhampton City Council","http://opendatacommunities.org/id/metropolitan-district-council/wolverhampton","708484","Verifone Services UK&Ireland Limited","7501015764","19.99","Equipment - Purchase","130241406","13/02/2019","Catering","Civic Centre Catering","R4000"
"Wolverhampton City Council","http://opendatacommunities.org/id/metropolitan-district-council/wolverhampton","708484","Verifone Services UK&Ireland Limited","537365","47.50","Equipment - Hire","130223611","27/02/2019","Catering","Civic Centre Catering","R4001"
"Wolverhampton City Council","http://opendatacommunities.org/id/metropolitan-district-council/wolverhampton","708484","Verifone Services UK&Ireland Limited","7500955599","47.50","Equipment - Hire","130226695","27/02/2019","Catering","Civic Centre Catering","R4001"
"Wolverhampton City Council","http://opendatacommunities.org/id/metropolitan-district-council/wolverhampton","708484","Verifone Services UK&Ireland Limited","7500968540","47.50","Equipment - Hire","130229110","27/02/2019","Catering","Civic Centre Catering","R4001"
"Wolverhampton City Council","http://opendatacommunities.org/id/metropolitan-district-council/wolverhampton","708484","Verifone Services UK&Ireland Limited","7501004744","27.24","Equipment - Hire","130239236","13/02/2019","Leisure Services","Bert Williams Leisure Centre Caf�","R4001"
"Wolverhampton City Council","http://opendatacommunities.org/id/metropolitan-district-council/wolverhampton","708484","Verifone Services UK&Ireland Limited","7500946789","39.98","R&M - Departmental planned (internal)","130223774","22/02/2019","Adult Education","Foyer Building","R2000"
"Wolverhampton City Council","http://opendatacommunities.org/id/metropolitan-district-council/wolverhampton","708484","Verifone Services UK&Ireland Limited","7501017005","27.24","Equipment - Hire","130241407","27/02/2019","Leisure Services","Bert Williams Leisure Centre Caf�","R4001"
"Wolverhampton City Council","http://opendatacommunities.org/id/metropolitan-district-council/wolverhampton","708484","Verifone Services UK&Ireland Limited","7500994917","47.50","Equipment - Hire","130235593","27/02/2019","Catering","Civic Centre Catering","R4001"
"Wolverhampton City Council","http://opendatacommunities.org/id/metropolitan-district-council/wolverhampton","708484","Verifone Services UK&Ireland Limited","7501007802","47.50","Equipment - Hire","130239237","27/02/2019","Catering","Civic Centre Catering","R4001"
"Wolverhampton City Council","http://opendatacommunities.org/id/metropolitan-district-council/wolverhampton","708484","Verifone Services UK&Ireland Limited","7500981789","47.50","Equipment - Hire","130232655","27/02/2019","Catering","Civic Centre Catering","R4001"
"Wolverhampton City Council","http://opendatacommunities.org/id/metropolitan-district-council/wolverhampton","708500","Virgin Media Limited(Cctv Payments Only)","915503-107","312.66","Equipment - Hire","130244691","27/02/2019","Operation & Maintenance of Existing Network","UTC Wolverhampton","R4001"
"Wolverhampton City Council","http://opendatacommunities.org/id/metropolitan-district-council/wolverhampton","708500","Virgin Media Limited(Cctv Payments Only)","915503-108","961.61","Equipment - Hire","130244692","27/02/2019","Operation & Maintenance of Existing Network","UTC Wolverhampton","R4001"
"Wolverhampton City Council","http://opendatacommunities.org/id/metropolitan-district-council/wolverhampton","708503","Virk Cut Price","REC24/DEC18","32.10","Publications","130240558","06/02/2019","Public Service Reform","Members Expenses","R4310"
"Wolverhampton City Council","http://opendatacommunities.org/id/metropolitan-district-council/wolverhampton","708503","Virk Cut Price","REC24/NOV18","36.40","Publications","130240559","06/02/2019","Public Service Reform","Members Expenses","R4310"
"Wolverhampton City Council","http://opendatacommunities.org/id/metropolitan-district-council/wolverhampton","708503","Virk Cut Price","REC22/DEC18","174.80","Publications","130240556","06/02/2019","Public Service Reform","Members Expenses","R4310"
"Wolverhampton City Council","http://opendatacommunities.org/id/metropolitan-district-council/wolverhampton","708503","Virk Cut Price","REC22/NOV18","199.40","Publications","130240557","06/02/2019","Public Service Reform","Members Expenses","R4310"
"Wolverhampton City Council","http://opendatacommunities.org/id/metropolitan-district-council/wolverhampton","708503","Virk Cut Price","REC14/NOV18","20.40","Publications","130240555","06/02/2019","Public Service Reform","Members Expenses","R4310"
"Wolverhampton City Council","http://opendatacommunities.org/id/metropolitan-district-council/wolverhampton","708503","Virk Cut Price","REC14/DEC18","18.30","Publications","130240554","06/02/2019","Public Service Reform","Members Expenses","R4310"
"Wolverhampton City Council","http://opendatacommunities.org/id/metropolitan-district-council/wolverhampton","708542","W.V.Howe Limited","248789","49.92","Equipment - Catering","130242044","01/02/2019","Visitor Economy","Bantock - Tea Rooms","R4010"
"Wolverhampton City Council","http://opendatacommunities.org/id/metropolitan-district-council/wolverhampton","708542","W.V.Howe Limited","249801","124.79","Equipment - Catering","130244498","20/02/2019","Catering","Education Catering - General Overheads","R4010"
"Wolverhampton City Council","http://opendatacommunities.org/id/metropolitan-district-council/wolverhampton","708554","Walsall Healthcare NHS Trust","G068248","14,376.00","TPP - Public Health Contracts","130227450","22/02/2019","Starting and Developing Well","Sexual Health","R5060"
"Wolverhampton City Council","http://opendatacommunities.org/id/metropolitan-district-council/wolverhampton","708554","Walsall Healthcare NHS Trust","G068348","12,850.00","TPP - Public Health Contracts","130227451","22/02/2019","Starting and Developing Well","Sexual Health","R5060"
"Wolverhampton City Council","http://opendatacommunities.org/id/metropolitan-district-council/wolverhampton","708554","Walsall Healthcare NHS Trust","G068418","704.00","TPP - Public Health Contracts","130227452","22/02/2019","Starting and Developing Well","Sexual Health","R5060"
"Wolverhampton City Council","http://opendatacommunities.org/id/metropolitan-district-council/wolverhampton","708554","Walsall Healthcare NHS Trust","G068411","12,146.00","TPP - Public Health Contracts","130243688","22/02/2019","Starting and Developing Well","Sexual Health","R5060"
"Wolverhampton City Council","http://opendatacommunities.org/id/metropolitan-district-council/wolverhampton","708566","Warners Private Hire","61","1,666.00","Client Transport","130244326","27/02/2019","Special Educational Needs","Special - Transport","R3042"
"Wolverhampton City Council","http://opendatacommunities.org/id/metropolitan-district-council/wolverhampton","708580","Waterstones Booksellers Limited","3081203469","293.25","Books","130235595","20/02/2019","Adult Education","Advance Learner Loan","R4309"
"Wolverhampton City Council","http://opendatacommunities.org/id/metropolitan-district-council/wolverhampton","708580","Waterstones Booksellers Limited","3081203920","-293.25","Books","130244820","20/02/2019","Adult Education","Advance Learner Loan","R4309"
"Wolverhampton City Council","http://opendatacommunities.org/id/metropolitan-district-council/wolverhampton","708580","Waterstones Booksellers Limited","3081204129","699.75","Books","130240768","06/02/2019","Adult Education","Access & FE","R4309"
"Wolverhampton City Council","http://opendatacommunities.org/id/metropolitan-district-council/wolverhampton","708580","Waterstones Booksellers Limited","3081204129","-699.75","Books","130240768","06/02/2019","Adult Education","Access & FE","R4309"
"Wolverhampton City Council","http://opendatacommunities.org/id/metropolitan-district-council/wolverhampton","708580","Waterstones Booksellers Limited","3081204129","615.78","Books","130240768","06/02/2019","Adult Education","Access & FE","R4309"
"Wolverhampton City Council","http://opendatacommunities.org/id/metropolitan-district-council/wolverhampton","708581","Wates Construction Limited","114643","73,659.00","Construction and Conversion","130244232","20/02/2019","-","Fire Safety Improvements","C1100"
"Wolverhampton City Council","http://opendatacommunities.org/id/metropolitan-district-council/wolverhampton","708581","Wates Construction Limited","114685","42,862.00","Construction and Conversion","130244499","22/02/2019","-","Decent Homes - Stock Improvements","C1100"
"Wolverhampton City Council","http://opendatacommunities.org/id/metropolitan-district-council/wolverhampton","708581","Wates Construction Limited","114648","345,571.00","Construction and Conversion","130244233","20/02/2019","-","Roof Refurbishment Programme","C1100"
"Wolverhampton City Council","http://opendatacommunities.org/id/metropolitan-district-council/wolverhampton","708588","WBP Visual Solutions Limited","110866","306.55","Services - Professional Fees","130243290","27/02/2019","Visitor Economy","Contemporary Gallery - NPO ACE WAG","R4400"
"Wolverhampton City Council","http://opendatacommunities.org/id/metropolitan-district-council/wolverhampton","708588","WBP Visual Solutions Limited","110855","164.00","Services - Professional Fees","130240560","06/02/2019","Visitor Economy","Contemporary Gallery - NPO ACE WAG","R4400"
"Wolverhampton City Council","http://opendatacommunities.org/id/metropolitan-district-council/wolverhampton","708601","Webgibb Welding Limited","C6912","262.30","R&M - Departmental planned (external)","130242210","06/02/2019","Bereavement Services","Crematorium","R2001"
"Wolverhampton City Council","http://opendatacommunities.org/id/metropolitan-district-council/wolverhampton","708616","Weightmans Llp","EL9619/ER4 01842830","667.50","Insurance - General","190561355","13/02/2019","Audit Services","Legal Liability","R4962"
"Wolverhampton City Council","http://opendatacommunities.org/id/metropolitan-district-council/wolverhampton","708649","West Midlands Employers","WOL_014325","220.00","Staff Advertising Costs","130242502","06/02/2019","The Hub","Central Advertising","R1700"
"Wolverhampton City Council","http://opendatacommunities.org/id/metropolitan-district-council/wolverhampton","708649","West Midlands Employers","10573","675.00","Training Expenses","130243517","13/02/2019","Public Service Reform","Centralised Training","R1650"
"Wolverhampton City Council","http://opendatacommunities.org/id/metropolitan-district-council/wolverhampton","708649","West Midlands Employers","WOL_014414","220.00","Staff Advertising Costs","130242815","06/02/2019","The Hub","Central Advertising","R1700"
"Wolverhampton City Council","http://opendatacommunities.org/id/metropolitan-district-council/wolverhampton","708653","West Midlands Police","203132","1,345.60","Services - Fees and Charges","130242211","20/02/2019","Licensing","Private Hire Vehicles","R4401"
"Wolverhampton City Council","http://opendatacommunities.org/id/metropolitan-district-council/wolverhampton","708653","West Midlands Police","203135","1,772.40","Services - Professional Fees","130242935","27/02/2019","Licensing","Private Hire Vehicles","R4400"
"Wolverhampton City Council","http://opendatacommunities.org/id/metropolitan-district-council/wolverhampton","708653","West Midlands Police","203136","1,592.40","Services - Fees and Charges","130242936","27/02/2019","Licensing","Private Hire Drivers","R4401"
"Wolverhampton City Council","http://opendatacommunities.org/id/metropolitan-district-council/wolverhampton","708656","West Midlands Travel Limited","XASI/00113174","579.50","Public Transport","130243691","27/02/2019","Special Educational Needs","Secondary- Transport","R3300"
"Wolverhampton City Council","http://opendatacommunities.org/id/metropolitan-district-council/wolverhampton","708656","West Midlands Travel Limited","XASI/00111533","984.00","Public Transport","130245339","27/02/2019","Special Educational Needs","Secondary- Transport","R3300"
"Wolverhampton City Council","http://opendatacommunities.org/id/metropolitan-district-council/wolverhampton","708656","West Midlands Travel Limited","XASCRN/000024","-818.75","Public Transport","130242212","20/02/2019","Special Educational Needs","Secondary- Transport","R3300"
"Wolverhampton City Council","http://opendatacommunities.org/id/metropolitan-district-council/wolverhampton","708656","West Midlands Travel Limited","XASI/00112899","1,856.75","Public Transport","130243690","20/02/2019","Special Educational Needs","Secondary- Transport","R3300"
"Wolverhampton City Council","http://opendatacommunities.org/id/metropolitan-district-council/wolverhampton","708656","West Midlands Travel Limited","XASI/00113197","315.00","Public Transport","130243692","27/02/2019","Special Educational Needs","Secondary- Transport","R3300"
"Wolverhampton City Council","http://opendatacommunities.org/id/metropolitan-district-council/wolverhampton","708656","West Midlands Travel Limited","SLCN/00001621","0.06","Payroll Control Account - Travel Card Scheme","130244234","20/02/2019","-","General Fund Balance Sheet","B3350"
"Wolverhampton City Council","http://opendatacommunities.org/id/metropolitan-district-council/wolverhampton","708656","West Midlands Travel Limited","SLCN/00001621","-736.31","Payroll Control Account - Travel Card Scheme","130244234","20/02/2019","-","General Fund Balance Sheet","B3350"
"Wolverhampton City Council","http://opendatacommunities.org/id/metropolitan-district-council/wolverhampton","708656","West Midlands Travel Limited","XASI/00112748","2,967.00","Public Transport","130241296","13/02/2019","Special Educational Needs","Secondary- Transport","R3300"
"Wolverhampton City Council","http://opendatacommunities.org/id/metropolitan-district-council/wolverhampton","708656","West Midlands Travel Limited","SLIN/00041959","236.90","Client Transport","130242045","20/02/2019","Skills","IMPACT","R3042"
"Wolverhampton City Council","http://opendatacommunities.org/id/metropolitan-district-council/wolverhampton","708671","Weston Sawmill & Nursery","29041","412.50","Materials","130242213","15/02/2019","Environmental Maintenance","Arbor Scheme","R4007"
"Wolverhampton City Council","http://opendatacommunities.org/id/metropolitan-district-council/wolverhampton","708697","Wilcox Psychological Associates Limited","3929","1,114.89","Services - Professional Fees","130244694","27/02/2019","Legal Services","Centralised External Legal Costs","R4400"
"Wolverhampton City Council","http://opendatacommunities.org/id/metropolitan-district-council/wolverhampton","708700","Wildlife Trust For B�Ham & Black Cty","992","1,232.00","Grant Payments","130234188","01/02/2019","City Development","Blue Network (ERDF)","R4700"
"Wolverhampton City Council","http://opendatacommunities.org/id/metropolitan-district-council/wolverhampton","708700","Wildlife Trust For B�Ham & Black Cty","992","1,289.00","Grant Payments","130234188","01/02/2019","City Development","Blue Network (ERDF)","R4700"
"Wolverhampton City Council","http://opendatacommunities.org/id/metropolitan-district-council/wolverhampton","708700","Wildlife Trust For B�Ham & Black Cty","1041","9,500.00","Services - Professional Fees","130245086","27/02/2019","Planning","Planning","R4400"
"Wolverhampton City Council","http://opendatacommunities.org/id/metropolitan-district-council/wolverhampton","708708","William Gough Limited","86052","453.70","R&M - Departmental planned (external)","130240314","06/02/2019","Maintenance Programme","Centralised R&M","R2001"
"Wolverhampton City Council","http://opendatacommunities.org/id/metropolitan-district-council/wolverhampton","708708","William Gough Limited","86077","1,127.52","R&M - Departmental planned (external)","130240566","06/02/2019","Maintenance Programme","Centralised R&M","R2001"
"Wolverhampton City Council","http://opendatacommunities.org/id/metropolitan-district-council/wolverhampton","708708","William Gough Limited","86029","190.02","R&M - Departmental planned (external)","130240132","06/02/2019","Maintenance Programme","Centralised R&M","R2001"
"Wolverhampton City Council","http://opendatacommunities.org/id/metropolitan-district-council/wolverhampton","708708","William Gough Limited","86041","795.20","R&M - Departmental planned (external)","130240311","06/02/2019","Learning Disability Provider","Learning Disabilities Management","R2001"
"Wolverhampton City Council","http://opendatacommunities.org/id/metropolitan-district-council/wolverhampton","708708","William Gough Limited","86068","206.41","R&M - Departmental planned (external)","130240323","06/02/2019","Facilities Management","Magistrates","R2001"
"Wolverhampton City Council","http://opendatacommunities.org/id/metropolitan-district-council/wolverhampton","708708","William Gough Limited","86050","173.69","R&M - Departmental planned (external)","130240312","06/02/2019","Maintenance Programme","Centralised R&M","R2001"
"Wolverhampton City Council","http://opendatacommunities.org/id/metropolitan-district-council/wolverhampton","708708","William Gough Limited","86069","119.75","R&M - Departmental planned (external)","130240324","06/02/2019","Maintenance Programme","Centralised R&M","R2001"
"Wolverhampton City Council","http://opendatacommunities.org/id/metropolitan-district-council/wolverhampton","708708","William Gough Limited","86028","206.41","R&M - Departmental planned (external)","130240026","06/02/2019","Maintenance Programme","Civic Centre Repairs & Maintenance","R2001"
"Wolverhampton City Council","http://opendatacommunities.org/id/metropolitan-district-council/wolverhampton","708708","William Gough Limited","86072","146.90","R&M - Departmental planned (external)","130240428","06/02/2019","Maintenance Programme","Centralised R&M","R2001"
"Wolverhampton City Council","http://opendatacommunities.org/id/metropolitan-district-council/wolverhampton","708708","William Gough Limited","C2431","-395.37","R&M - Departmental planned (external)","130241039","13/02/2019","Maintenance Programme","Centralised R&M","R2001"
"Wolverhampton City Council","http://opendatacommunities.org/id/metropolitan-district-council/wolverhampton","708708","William Gough Limited","C2430","-26.71","R&M - Departmental planned (external)","130241038","13/02/2019","Maintenance Programme","Centralised R&M","R2001"
"Wolverhampton City Council","http://opendatacommunities.org/id/metropolitan-district-council/wolverhampton","708708","William Gough Limited","86091","97.80","R&M - Departmental planned (external)","130241033","13/02/2019","Maintenance Programme","Centralised R&M","R2001"
"Wolverhampton City Council","http://opendatacommunities.org/id/metropolitan-district-council/wolverhampton","708708","William Gough Limited","86051","433.90","R&M - Departmental planned (external)","130240313","06/02/2019","Maintenance Programme","Centralised R&M","R2001"
"Wolverhampton City Council","http://opendatacommunities.org/id/metropolitan-district-council/wolverhampton","708708","William Gough Limited","86067","277.18","R&M - Departmental planned (external)","130240322","06/02/2019","Maintenance Programme","Centralised R&M","R2001"
"Wolverhampton City Council","http://opendatacommunities.org/id/metropolitan-district-council/wolverhampton","708708","William Gough Limited","86080","145.68","R&M - Departmental planned (external)","130240771","13/02/2019","Maintenance Programme","Centralised R&M","R2001"
"Wolverhampton City Council","http://opendatacommunities.org/id/metropolitan-district-council/wolverhampton","708708","William Gough Limited","86094","138.80","R&M - Departmental planned (external)","130241035","13/02/2019","Maintenance Programme","Centralised R&M","R2001"
"Wolverhampton City Council","http://opendatacommunities.org/id/metropolitan-district-council/wolverhampton","708708","William Gough Limited","86082","76.67","R&M - Departmental planned (external)","130240773","13/02/2019","Maintenance Programme","Centralised R&M","R2001"
"Wolverhampton City Council","http://opendatacommunities.org/id/metropolitan-district-council/wolverhampton","708708","William Gough Limited","86083","40.00","R&M - Departmental planned (external)","130240774","13/02/2019","Facilities Management","Magistrates","R2001"
"Wolverhampton City Council","http://opendatacommunities.org/id/metropolitan-district-council/wolverhampton","708708","William Gough Limited","86085","83.74","R&M - Departmental planned (external)","130240775","13/02/2019","Maintenance Programme","Centralised R&M","R2001"
"Wolverhampton City Council","http://opendatacommunities.org/id/metropolitan-district-council/wolverhampton","708708","William Gough Limited","86093","81.93","R&M - Departmental planned (external)","130241034","13/02/2019","Maintenance Programme","Centralised R&M","R2001"
"Wolverhampton City Council","http://opendatacommunities.org/id/metropolitan-district-council/wolverhampton","708708","William Gough Limited","86092","42.89","Services - Supplies and Services to service users","130243520","13/02/2019","Safeguarding","Court of Protection, Funerals and Protection of Property","R4408"
"Wolverhampton City Council","http://opendatacommunities.org/id/metropolitan-district-council/wolverhampton","708708","William Gough Limited","86096","488.69","R&M - Departmental planned (external)","130241036","13/02/2019","Maintenance Programme","Centralised R&M","R2001"
"Wolverhampton City Council","http://opendatacommunities.org/id/metropolitan-district-council/wolverhampton","708708","William Gough Limited","86086","59.82","R&M - Departmental planned (external)","130240776","13/02/2019","Maintenance Programme","Centralised R&M","R2001"
"Wolverhampton City Council","http://opendatacommunities.org/id/metropolitan-district-council/wolverhampton","708708","William Gough Limited","86081","273.33","R&M - Departmental planned (external)","130240772","13/02/2019","Maintenance Programme","Centralised R&M","R2001"
"Wolverhampton City Council","http://opendatacommunities.org/id/metropolitan-district-council/wolverhampton","708708","William Gough Limited","86110","422.59","R&M - Departmental planned (external)","130241182","13/02/2019","Maintenance Programme","Centralised R&M","R2001"
"Wolverhampton City Council","http://opendatacommunities.org/id/metropolitan-district-council/wolverhampton","708708","William Gough Limited","86088","40.00","R&M - Departmental planned (external)","130241032","13/02/2019","Maintenance Programme","Civic Centre Repairs & Maintenance","R2001"
"Wolverhampton City Council","http://opendatacommunities.org/id/metropolitan-district-council/wolverhampton","708708","William Gough Limited","86087","251.31","R&M - Departmental planned (external)","130240777","13/02/2019","Maintenance Programme","Centralised R&M","R2001"
"Wolverhampton City Council","http://opendatacommunities.org/id/metropolitan-district-council/wolverhampton","708708","William Gough Limited","86102","176.92","R&M - Departmental planned (external)","130241037","13/02/2019","Facilities Management","Magistrates","R2001"
"Wolverhampton City Council","http://opendatacommunities.org/id/metropolitan-district-council/wolverhampton","708708","William Gough Limited","86100","192.83","Services - Supplies and Services to service users","130243521","13/02/2019","Safeguarding","Court of Protection, Funerals and Protection of Property","R4408"
"Wolverhampton City Council","http://opendatacommunities.org/id/metropolitan-district-council/wolverhampton","708708","William Gough Limited","85743","219.17","Construction and Conversion","130235044","13/02/2019","-","Capital Maintenance - Structural Works","C1100"
"Wolverhampton City Council","http://opendatacommunities.org/id/metropolitan-district-council/wolverhampton","708708","William Gough Limited","85703","1,600.21","Construction and Conversion","130235216","13/02/2019","-","Capital Maintenance - Structural Works","C1100"
"Wolverhampton City Council","http://opendatacommunities.org/id/metropolitan-district-council/wolverhampton","708708","William Gough Limited","85858","816.23","R&M - Departmental planned (external)","130237355","13/02/2019","Bereavement Services","Cemeteries","R2001"
"Wolverhampton City Council","http://opendatacommunities.org/id/metropolitan-district-council/wolverhampton","708708","William Gough Limited","86106","7,828.68","R&M - Departmental planned (external)","130241180","13/02/2019","Maintenance Programme","Centralised R&M","R2001"
"Wolverhampton City Council","http://opendatacommunities.org/id/metropolitan-district-council/wolverhampton","708708","William Gough Limited","86109","1,772.94","R&M - Departmental planned (external)","130241181","13/02/2019","Maintenance Programme","Centralised R&M","R2001"
"Wolverhampton City Council","http://opendatacommunities.org/id/metropolitan-district-council/wolverhampton","708708","William Gough Limited","86066","2,457.96","R&M - Departmental planned (external)","130240321","06/02/2019","Maintenance Programme","Centralised R&M","R2001"
"Wolverhampton City Council","http://opendatacommunities.org/id/metropolitan-district-council/wolverhampton","708708","William Gough Limited","86042","40.00","R&M - Departmental planned (external)","130240139","06/02/2019","Bereavement Services","Cemeteries","R2001"
"Wolverhampton City Council","http://opendatacommunities.org/id/metropolitan-district-council/wolverhampton","708708","William Gough Limited","86037","40.00","R&M - Departmental planned (external)","130240137","06/02/2019","Maintenance Programme","Centralised R&M","R2001"
"Wolverhampton City Council","http://opendatacommunities.org/id/metropolitan-district-council/wolverhampton","708708","William Gough Limited","86075","26.61","R&M - Departmental planned (external)","130240431","06/02/2019","Maintenance Programme","Centralised R&M","R2001"
"Wolverhampton City Council","http://opendatacommunities.org/id/metropolitan-district-council/wolverhampton","708708","William Gough Limited","86027","3,036.71","R&M - Departmental planned (external)","130240025","06/02/2019","Maintenance Programme","Centralised R&M","R2001"
"Wolverhampton City Council","http://opendatacommunities.org/id/metropolitan-district-council/wolverhampton","708708","William Gough Limited","85426","40.00","R&M - Departmental planned (external)","130229544","06/02/2019","Maintenance Programme","Centralised R&M","R2001"
"Wolverhampton City Council","http://opendatacommunities.org/id/metropolitan-district-council/wolverhampton","708708","William Gough Limited","86046","40.00","R&M - Departmental planned (external)","130240143","06/02/2019","Maintenance Programme","Centralised R&M","R2001"
"Wolverhampton City Council","http://opendatacommunities.org/id/metropolitan-district-council/wolverhampton","708708","William Gough Limited","86057","78.52","R&M - Departmental planned (external)","130240318","06/02/2019","Maintenance Programme","Centralised R&M","R2001"
"Wolverhampton City Council","http://opendatacommunities.org/id/metropolitan-district-council/wolverhampton","708708","William Gough Limited","86054","40.00","R&M - Departmental planned (external)","130240145","06/02/2019","Maintenance Programme","Centralised R&M","R2001"
"Wolverhampton City Council","http://opendatacommunities.org/id/metropolitan-district-council/wolverhampton","708708","William Gough Limited","86074","40.00","R&M - Departmental planned (external)","130240430","06/02/2019","Maintenance Programme","Centralised R&M","R2001"
"Wolverhampton City Council","http://opendatacommunities.org/id/metropolitan-district-council/wolverhampton","708708","William Gough Limited","86076","86.65","R&M - Departmental planned (external)","130240565","06/02/2019","Maintenance Programme","Centralised R&M","R2001"
"Wolverhampton City Council","http://opendatacommunities.org/id/metropolitan-district-council/wolverhampton","708708","William Gough Limited","86031","103.65","R&M - Departmental planned (external)","130240770","06/02/2019","Facilities Management","Parkfields Office Accomodation","R2001"
"Wolverhampton City Council","http://opendatacommunities.org/id/metropolitan-district-council/wolverhampton","708708","William Gough Limited","86036","79.83","R&M - Departmental planned (external)","130240136","06/02/2019","Maintenance Programme","Centralised R&M","R2001"
"Wolverhampton City Council","http://opendatacommunities.org/id/metropolitan-district-council/wolverhampton","708708","William Gough Limited","86073","40.00","R&M - Departmental planned (external)","130240429","06/02/2019","Maintenance Programme","Centralised R&M","R2001"
"Wolverhampton City Council","http://opendatacommunities.org/id/metropolitan-district-council/wolverhampton","708708","William Gough Limited","86065","88.95","R&M - Departmental planned (external)","130240320","06/02/2019","Bereavement Services","Cemeteries","R2001"
"Wolverhampton City Council","http://opendatacommunities.org/id/metropolitan-district-council/wolverhampton","708708","William Gough Limited","86043","70.95","R&M - Departmental planned (external)","130240140","06/02/2019","Maintenance Programme","Centralised R&M","R2001"
"Wolverhampton City Council","http://opendatacommunities.org/id/metropolitan-district-council/wolverhampton","708708","William Gough Limited","86044","62.90","R&M - Departmental planned (external)","130240141","06/02/2019","Maintenance Programme","Centralised R&M","R2001"
"Wolverhampton City Council","http://opendatacommunities.org/id/metropolitan-district-council/wolverhampton","708708","William Gough Limited","86030","53.29","R&M - Departmental planned (external)","130240133","06/02/2019","Markets","Bilston Market and Licensed Operations","R2001"
"Wolverhampton City Council","http://opendatacommunities.org/id/metropolitan-district-council/wolverhampton","708708","William Gough Limited","86053","114.79","R&M - Departmental planned (external)","130240315","06/02/2019","Maintenance Programme","Centralised R&M","R2001"
"Wolverhampton City Council","http://opendatacommunities.org/id/metropolitan-district-council/wolverhampton","708708","William Gough Limited","86034","53.29","R&M - Departmental planned (external)","130240134","06/02/2019","Maintenance Programme","Centralised R&M","R2001"
"Wolverhampton City Council","http://opendatacommunities.org/id/metropolitan-district-council/wolverhampton","708708","William Gough Limited","86055","56.88","R&M - Departmental planned (external)","130240316","06/02/2019","Maintenance Programme","Centralised R&M","R2001"
"Wolverhampton City Council","http://opendatacommunities.org/id/metropolitan-district-council/wolverhampton","708708","William Gough Limited","86056","70.64","R&M - Departmental planned (external)","130240317","06/02/2019","Maintenance Programme","Centralised R&M","R2001"
"Wolverhampton City Council","http://opendatacommunities.org/id/metropolitan-district-council/wolverhampton","708708","William Gough Limited","86142","40.00","R&M - Departmental planned (external)","130241773","27/02/2019","Maintenance Programme","Centralised R&M","R2001"
"Wolverhampton City Council","http://opendatacommunities.org/id/metropolitan-district-council/wolverhampton","708708","William Gough Limited","86045","68.10","R&M - Departmental planned (external)","130240142","06/02/2019","Maintenance Programme","Centralised R&M","R2001"
"Wolverhampton City Council","http://opendatacommunities.org/id/metropolitan-district-council/wolverhampton","708708","William Gough Limited","86047","68.88","R&M - Departmental planned (external)","130240144","06/02/2019","Maintenance Programme","Centralised R&M","R2001"
"Wolverhampton City Council","http://opendatacommunities.org/id/metropolitan-district-council/wolverhampton","708708","William Gough Limited","86058","66.81","R&M - Departmental planned (external)","130240319","06/02/2019","Maintenance Programme","Centralised R&M","R2001"
"Wolverhampton City Council","http://opendatacommunities.org/id/metropolitan-district-council/wolverhampton","708708","William Gough Limited","84662","60.53","R&M - Departmental planned (external)","130240562","01/02/2019","Maintenance Programme","Centralised R&M","R2001"
"Wolverhampton City Council","http://opendatacommunities.org/id/metropolitan-district-council/wolverhampton","708708","William Gough Limited","85445","13,929.36","Construction and Conversion","130230488","27/02/2019","-","Capital Maintenance - Roof / Ceilings Replacements","C1100"
"Wolverhampton City Council","http://opendatacommunities.org/id/metropolitan-district-council/wolverhampton","708708","William Gough Limited","86210","188.21","R&M - Departmental planned (external)","130242632","27/02/2019","Maintenance Programme","Centralised R&M","R2001"
"Wolverhampton City Council","http://opendatacommunities.org/id/metropolitan-district-council/wolverhampton","708708","William Gough Limited","86205","40.00","R&M - Departmental planned (external)","130242504","27/02/2019","Maintenance Programme","Centralised R&M","R2001"
"Wolverhampton City Council","http://opendatacommunities.org/id/metropolitan-district-council/wolverhampton","708708","William Gough Limited","86213","61.95","R&M - Departmental planned (external)","130242509","27/02/2019","Maintenance Programme","Centralised R&M","R2001"
"Wolverhampton City Council","http://opendatacommunities.org/id/metropolitan-district-council/wolverhampton","708708","William Gough Limited","86207","40.00","R&M - Departmental planned (external)","130242506","27/02/2019","Maintenance Programme","Centralised R&M","R2001"
"Wolverhampton City Council","http://opendatacommunities.org/id/metropolitan-district-council/wolverhampton","708708","William Gough Limited","86221","45.75","R&M - Departmental planned (external)","130242639","27/02/2019","Maintenance Programme","Centralised R&M","R2001"
"Wolverhampton City Council","http://opendatacommunities.org/id/metropolitan-district-council/wolverhampton","708708","William Gough Limited","85932","241.21","R&M - Departmental planned (external)","130237525","27/02/2019","Maintenance Programme","Centralised R&M","R2001"
"Wolverhampton City Council","http://opendatacommunities.org/id/metropolitan-district-council/wolverhampton","708708","William Gough Limited","86208","452.57","R&M - Departmental planned (external)","130242507","27/02/2019","Maintenance Programme","Centralised R&M","R2001"
"Wolverhampton City Council","http://opendatacommunities.org/id/metropolitan-district-council/wolverhampton","708708","William Gough Limited","86204","200.51","R&M - Departmental planned (external)","130242364","27/02/2019","Maintenance Programme","Centralised R&M","R2001"
"Wolverhampton City Council","http://opendatacommunities.org/id/metropolitan-district-council/wolverhampton","708708","William Gough Limited","86215","437.05","R&M - Departmental planned (external)","130242634","27/02/2019","Maintenance Programme","Centralised R&M","R2001"
"Wolverhampton City Council","http://opendatacommunities.org/id/metropolitan-district-council/wolverhampton","708708","William Gough Limited","86201","51.58","R&M - Departmental planned (external)","130242361","27/02/2019","Maintenance Programme","Centralised R&M","R2001"
"Wolverhampton City Council","http://opendatacommunities.org/id/metropolitan-district-council/wolverhampton","708708","William Gough Limited","86186","54.94","R&M - Departmental planned (external)","130242059","27/02/2019","Maintenance Programme","Centralised R&M","R2001"
"Wolverhampton City Council","http://opendatacommunities.org/id/metropolitan-district-council/wolverhampton","708708","William Gough Limited","86217","218.52","R&M - Departmental planned (external)","130242635","27/02/2019","Markets","Bilston Market and Licensed Operations","R2001"
"Wolverhampton City Council","http://opendatacommunities.org/id/metropolitan-district-council/wolverhampton","708708","William Gough Limited","86223","55.82","R&M - Departmental planned (external)","130242641","27/02/2019","Maintenance Programme","Centralised R&M","R2001"
"Wolverhampton City Council","http://opendatacommunities.org/id/metropolitan-district-council/wolverhampton","708708","William Gough Limited","86220","52.93","R&M - Departmental planned (external)","130242638","27/02/2019","Maintenance Programme","Centralised R&M","R2001"
"Wolverhampton City Council","http://opendatacommunities.org/id/metropolitan-district-council/wolverhampton","708708","William Gough Limited","86214","72.84","R&M - Departmental planned (external)","130242633","27/02/2019","Estates and Valuations","Industrial Premises ; NEC,Monmore Road","R2001"
"Wolverhampton City Council","http://opendatacommunities.org/id/metropolitan-district-council/wolverhampton","708708","William Gough Limited","86224","40.00","R&M - Departmental planned (external)","130242642","27/02/2019","Maintenance Programme","Centralised R&M","R2001"
"Wolverhampton City Council","http://opendatacommunities.org/id/metropolitan-district-council/wolverhampton","708708","William Gough Limited","86219","65.74","R&M - Departmental planned (external)","130242637","27/02/2019","Maintenance Programme","Centralised R&M","R2001"
"Wolverhampton City Council","http://opendatacommunities.org/id/metropolitan-district-council/wolverhampton","708708","William Gough Limited","86222","40.00","R&M - Departmental planned (external)","130242640","27/02/2019","Maintenance Programme","Centralised R&M","R2001"
"Wolverhampton City Council","http://opendatacommunities.org/id/metropolitan-district-council/wolverhampton","708708","William Gough Limited","85994","116.23","R&M - Departmental planned (external)","130238785","27/02/2019","Markets","Bilston Market and Licensed Operations","R2001"
"Wolverhampton City Council","http://opendatacommunities.org/id/metropolitan-district-council/wolverhampton","708708","William Gough Limited","86206","103.65","R&M - Departmental planned (external)","130242505","27/02/2019","Maintenance Programme","Centralised R&M","R2001"
"Wolverhampton City Council","http://opendatacommunities.org/id/metropolitan-district-council/wolverhampton","708708","William Gough Limited","86209","128.46","R&M - Departmental planned (external)","130242508","27/02/2019","Maintenance Programme","Centralised R&M","R2001"
"Wolverhampton City Council","http://opendatacommunities.org/id/metropolitan-district-council/wolverhampton","708708","William Gough Limited","86129","684.10","R&M - Departmental planned (external)","130241765","27/02/2019","Bereavement Services","Cemeteries","R2001"
"Wolverhampton City Council","http://opendatacommunities.org/id/metropolitan-district-council/wolverhampton","708708","William Gough Limited","86203","802.05","R&M - Departmental planned (external)","130242363","27/02/2019","Facilities Management","Caretakers Community Centre","R2001"
"Wolverhampton City Council","http://opendatacommunities.org/id/metropolitan-district-council/wolverhampton","708708","William Gough Limited","86136","40.00","R&M - Departmental planned (external)","130241771","20/02/2019","Facilities Management","Magistrates","R2001"
"Wolverhampton City Council","http://opendatacommunities.org/id/metropolitan-district-council/wolverhampton","708708","William Gough Limited","85774","40.00","R&M - Departmental planned (external)","130235223","20/02/2019","Maintenance Programme","Centralised R&M","R2001"
"Wolverhampton City Council","http://opendatacommunities.org/id/metropolitan-district-council/wolverhampton","708708","William Gough Limited","85603","40.00","R&M - Departmental planned (external)","130233527","20/02/2019","Markets","Bilston Market and Licensed Operations","R2001"
"Wolverhampton City Council","http://opendatacommunities.org/id/metropolitan-district-council/wolverhampton","708708","William Gough Limited","86157","40.00","R&M - Departmental planned (external)","130241914","20/02/2019","Facilities Management","Magistrates","R2001"
"Wolverhampton City Council","http://opendatacommunities.org/id/metropolitan-district-council/wolverhampton","708708","William Gough Limited","86145","40.00","R&M - Departmental planned (external)","130241776","20/02/2019","Maintenance Programme","Centralised R&M","R2001"
"Wolverhampton City Council","http://opendatacommunities.org/id/metropolitan-district-council/wolverhampton","708708","William Gough Limited","86191","40.00","R&M - Departmental planned (external)","130242063","20/02/2019","Maintenance Programme","Centralised R&M","R2001"
"Wolverhampton City Council","http://opendatacommunities.org/id/metropolitan-district-council/wolverhampton","708708","William Gough Limited","86152","40.00","R&M - Departmental planned (external)","130241910","20/02/2019","Maintenance Programme","Civic Centre Repairs & Maintenance","R2001"
"Wolverhampton City Council","http://opendatacommunities.org/id/metropolitan-district-council/wolverhampton","708708","William Gough Limited","86144","49.42","R&M - Departmental planned (external)","130241775","20/02/2019","Maintenance Programme","Centralised R&M","R2001"
"Wolverhampton City Council","http://opendatacommunities.org/id/metropolitan-district-council/wolverhampton","708708","William Gough Limited","86196","346.20","R&M - Departmental planned (external)","130242067","20/02/2019","Bereavement Services","Cemeteries","R2001"
"Wolverhampton City Council","http://opendatacommunities.org/id/metropolitan-district-council/wolverhampton","708708","William Gough Limited","86180","50.73","R&M - Departmental planned (external)","130242503","20/02/2019","Maintenance Programme","Centralised R&M","R2001"
"Wolverhampton City Council","http://opendatacommunities.org/id/metropolitan-district-council/wolverhampton","708708","William Gough Limited","86166","374.77","R&M - Departmental planned (external)","130241922","20/02/2019","Facilities Management","Parkfields Office Accomodation","R2001"
"Wolverhampton City Council","http://opendatacommunities.org/id/metropolitan-district-council/wolverhampton","708708","William Gough Limited","86173","494.99","R&M - Departmental planned (external)","130242048","20/02/2019","Facilities Management","Hickman Avenue Depot","R2001"
"Wolverhampton City Council","http://opendatacommunities.org/id/metropolitan-district-council/wolverhampton","708708","William Gough Limited","86130","544.96","R&M - Departmental planned (external)","130241766","20/02/2019","Maintenance Programme","Centralised R&M","R2001"
"Wolverhampton City Council","http://opendatacommunities.org/id/metropolitan-district-council/wolverhampton","708708","William Gough Limited","86163","49.13","R&M - Departmental planned (external)","130241919","20/02/2019","Facilities Management","Magistrates","R2001"
"Wolverhampton City Council","http://opendatacommunities.org/id/metropolitan-district-council/wolverhampton","708708","William Gough Limited","86134","46.79","R&M - Departmental planned (external)","130241769","20/02/2019","Maintenance Programme","Centralised R&M","R2001"
"Wolverhampton City Council","http://opendatacommunities.org/id/metropolitan-district-council/wolverhampton","708708","William Gough Limited","86125","86.34","R&M - Departmental planned (external)","130241761","20/02/2019","Maintenance Programme","Centralised R&M","R2001"
"Wolverhampton City Council","http://opendatacommunities.org/id/metropolitan-district-council/wolverhampton","708708","William Gough Limited","86153","87.15","R&M - Departmental planned (external)","130241911","20/02/2019","Facilities Management","Magistrates","R2001"
"Wolverhampton City Council","http://opendatacommunities.org/id/metropolitan-district-council/wolverhampton","708708","William Gough Limited","86143","114.81","R&M - Departmental planned (external)","130241774","20/02/2019","Maintenance Programme","Centralised R&M","R2001"
"Wolverhampton City Council","http://opendatacommunities.org/id/metropolitan-district-council/wolverhampton","708708","William Gough Limited","86168","782.18","R&M - Departmental planned (external)","130241923","20/02/2019","Maintenance Programme","Centralised R&M","R2001"
"Wolverhampton City Council","http://opendatacommunities.org/id/metropolitan-district-council/wolverhampton","708708","William Gough Limited","86158","103.82","R&M - Departmental planned (external)","130241915","20/02/2019","Maintenance Programme","Civic Centre Repairs & Maintenance","R2001"
"Wolverhampton City Council","http://opendatacommunities.org/id/metropolitan-district-council/wolverhampton","708708","William Gough Limited","86156","110.32","R&M - Departmental planned (external)","130241913","20/02/2019","Facilities Management","Magistrates","R2001"
"Wolverhampton City Council","http://opendatacommunities.org/id/metropolitan-district-council/wolverhampton","708708","William Gough Limited","86119","4,745.55","R&M - Departmental planned (external)","130241756","20/02/2019","Maintenance Programme","Centralised R&M","R2001"
"Wolverhampton City Council","http://opendatacommunities.org/id/metropolitan-district-council/wolverhampton","708708","William Gough Limited","86192","106.39","R&M - Departmental planned (external)","130242064","20/02/2019","Maintenance Programme","Centralised R&M","R2001"
"Wolverhampton City Council","http://opendatacommunities.org/id/metropolitan-district-council/wolverhampton","708708","William Gough Limited","86179","119.77","R&M - Departmental planned (external)","130242053","20/02/2019","Facilities Management","Parkfields Office Accomodation","R2001"
"Wolverhampton City Council","http://opendatacommunities.org/id/metropolitan-district-council/wolverhampton","708708","William Gough Limited","86149","98.84","R&M - Departmental planned (external)","130241779","20/02/2019","Maintenance Programme","Centralised R&M","R2001"
"Wolverhampton City Council","http://opendatacommunities.org/id/metropolitan-district-council/wolverhampton","708708","William Gough Limited","86122","69.34","R&M - Departmental planned (external)","130241758","20/02/2019","Maintenance Programme","Centralised R&M","R2001"
"Wolverhampton City Council","http://opendatacommunities.org/id/metropolitan-district-council/wolverhampton","708708","William Gough Limited","86146","102.96","R&M - Departmental planned (external)","130241777","20/02/2019","Maintenance Programme","Centralised R&M","R2001"
"Wolverhampton City Council","http://opendatacommunities.org/id/metropolitan-district-council/wolverhampton","708708","William Gough Limited","86171","53.29","R&M - Departmental planned (external)","130241925","20/02/2019","Facilities Management","Magistrates","R2001"
"Wolverhampton City Council","http://opendatacommunities.org/id/metropolitan-district-council/wolverhampton","708708","William Gough Limited","86135","66.53","R&M - Departmental planned (external)","130241770","20/02/2019","Facilities Management","Magistrates","R2001"
"Wolverhampton City Council","http://opendatacommunities.org/id/metropolitan-district-council/wolverhampton","708708","William Gough Limited","86164","53.29","R&M - Departmental planned (external)","130241920","20/02/2019","Maintenance Programme","Civic Centre Repairs & Maintenance","R2001"
"Wolverhampton City Council","http://opendatacommunities.org/id/metropolitan-district-council/wolverhampton","708708","William Gough Limited","86183","68.31","R&M - Departmental planned (external)","130242056","20/02/2019","Maintenance Programme","Centralised R&M","R2001"
"Wolverhampton City Council","http://opendatacommunities.org/id/metropolitan-district-council/wolverhampton","708708","William Gough Limited","86176","50.93","R&M - Departmental planned (external)","130242050","20/02/2019","Maintenance Programme","Centralised R&M","R2001"
"Wolverhampton City Council","http://opendatacommunities.org/id/metropolitan-district-council/wolverhampton","708708","William Gough Limited","86128","233.96","R&M - Departmental planned (external)","130241764","20/02/2019","Maintenance Programme","Centralised R&M","R2001"
"Wolverhampton City Council","http://opendatacommunities.org/id/metropolitan-district-council/wolverhampton","708708","William Gough Limited","85759","50.73","R&M - Departmental planned (external)","130235056","20/02/2019","Maintenance Programme","Centralised R&M","R2001"
"Wolverhampton City Council","http://opendatacommunities.org/id/metropolitan-district-council/wolverhampton","708708","William Gough Limited","86185","52.03","R&M - Departmental planned (external)","130242058","20/02/2019","Maintenance Programme","Centralised R&M","R2001"
"Wolverhampton City Council","http://opendatacommunities.org/id/metropolitan-district-council/wolverhampton","708708","William Gough Limited","86165","260.63","R&M - Departmental planned (external)","130241921","20/02/2019","Maintenance Programme","Centralised R&M","R2001"
"Wolverhampton City Council","http://opendatacommunities.org/id/metropolitan-district-council/wolverhampton","708708","William Gough Limited","86124","215.44","R&M - Departmental planned (external)","130241760","20/02/2019","Maintenance Programme","Centralised R&M","R2001"
"Wolverhampton City Council","http://opendatacommunities.org/id/metropolitan-district-council/wolverhampton","708708","William Gough Limited","86177","243.64","R&M - Departmental planned (external)","130242051","20/02/2019","Maintenance Programme","Centralised R&M","R2001"
"Wolverhampton City Council","http://opendatacommunities.org/id/metropolitan-district-council/wolverhampton","708708","William Gough Limited","86162","212.11","R&M - Departmental planned (external)","130241918","20/02/2019","Facilities Management","Parkfields Office Accomodation","R2001"
"Wolverhampton City Council","http://opendatacommunities.org/id/metropolitan-district-council/wolverhampton","708708","William Gough Limited","86182","55.92","R&M - Departmental planned (external)","130242055","20/02/2019","Maintenance Programme","Centralised R&M","R2001"
"Wolverhampton City Council","http://opendatacommunities.org/id/metropolitan-district-council/wolverhampton","708708","William Gough Limited","86117","318.60","R&M - Departmental planned (external)","130241755","20/02/2019","Maintenance Programme","Centralised R&M","R2001"
"Wolverhampton City Council","http://opendatacommunities.org/id/metropolitan-district-council/wolverhampton","708708","William Gough Limited","86131","291.52","R&M - Departmental planned (external)","130241767","20/02/2019","Maintenance Programme","Centralised R&M","R2001"
"Wolverhampton City Council","http://opendatacommunities.org/id/metropolitan-district-council/wolverhampton","708708","William Gough Limited","86189","55.34","R&M - Departmental planned (external)","130242061","20/02/2019","Maintenance Programme","Centralised R&M","R2001"
"Wolverhampton City Council","http://opendatacommunities.org/id/metropolitan-district-council/wolverhampton","708708","William Gough Limited","86126","177.11","R&M - Departmental planned (external)","130241762","20/02/2019","Maintenance Programme","Centralised R&M","R2001"
"Wolverhampton City Council","http://opendatacommunities.org/id/metropolitan-district-council/wolverhampton","708708","William Gough Limited","86161","175.43","R&M - Departmental planned (external)","130241917","20/02/2019","Maintenance Programme","Centralised R&M","R2001"
"Wolverhampton City Council","http://opendatacommunities.org/id/metropolitan-district-council/wolverhampton","708708","William Gough Limited","86194","196.71","R&M - Departmental planned (external)","130242065","20/02/2019","Maintenance Programme","Centralised R&M","R2001"
"Wolverhampton City Council","http://opendatacommunities.org/id/metropolitan-district-council/wolverhampton","708708","William Gough Limited","86181","173.97","R&M - Departmental planned (external)","130242054","20/02/2019","Maintenance Programme","Centralised R&M","R2001"
"Wolverhampton City Council","http://opendatacommunities.org/id/metropolitan-district-council/wolverhampton","708708","William Gough Limited","86178","146.05","R&M - Departmental planned (external)","130242052","20/02/2019","Maintenance Programme","Centralised R&M","R2001"
"Wolverhampton City Council","http://opendatacommunities.org/id/metropolitan-district-council/wolverhampton","708708","William Gough Limited","86147","146.81","R&M - Departmental planned (external)","130241778","20/02/2019","Maintenance Programme","Centralised R&M","R2001"
"Wolverhampton City Council","http://opendatacommunities.org/id/metropolitan-district-council/wolverhampton","708708","William Gough Limited","86184","151.55","R&M - Departmental planned (external)","130242057","20/02/2019","Maintenance Programme","Centralised R&M","R2001"
"Wolverhampton City Council","http://opendatacommunities.org/id/metropolitan-district-council/wolverhampton","708708","William Gough Limited","85811","170.20","R&M - Departmental planned (external)","130235749","20/02/2019","Maintenance Programme","Centralised R&M","R2001"
"Wolverhampton City Council","http://opendatacommunities.org/id/metropolitan-district-council/wolverhampton","708708","William Gough Limited","86190","117.43","R&M - Departmental planned (external)","130242062","20/02/2019","Maintenance Programme","Centralised R&M","R2001"
"Wolverhampton City Council","http://opendatacommunities.org/id/metropolitan-district-council/wolverhampton","708708","William Gough Limited","86127","145.68","R&M - Departmental planned (external)","130241763","20/02/2019","Maintenance Programme","Centralised R&M","R2001"
"Wolverhampton City Council","http://opendatacommunities.org/id/metropolitan-district-council/wolverhampton","708708","William Gough Limited","85785","117.95","R&M - Departmental planned (external)","130235232","20/02/2019","Maintenance Programme","Centralised R&M","R2001"
"Wolverhampton City Council","http://opendatacommunities.org/id/metropolitan-district-council/wolverhampton","708708","William Gough Limited","86172","120.72","R&M - Departmental planned (external)","130242047","20/02/2019","Maintenance Programme","Centralised R&M","R2001"
"Wolverhampton City Council","http://opendatacommunities.org/id/metropolitan-district-council/wolverhampton","708708","William Gough Limited","86200","1,474.79","R&M - Departmental planned (external)","130242071","20/02/2019","Markets","Bilston Market and Licensed Operations","R2001"
"Wolverhampton City Council","http://opendatacommunities.org/id/metropolitan-district-council/wolverhampton","708708","William Gough Limited","85750","37.07","R&M - Departmental planned (external)","130235050","20/02/2019","Bereavement Services","Cemeteries","R2001"
"Wolverhampton City Council","http://opendatacommunities.org/id/metropolitan-district-council/wolverhampton","708708","William Gough Limited","C2432","-30.79","R&M - Departmental planned (external)","130242072","20/02/2019","Maintenance Programme","Centralised R&M","R2001"
"Wolverhampton City Council","http://opendatacommunities.org/id/metropolitan-district-council/wolverhampton","708708","William Gough Limited","86170","30.79","R&M - Departmental planned (external)","130241924","20/02/2019","Maintenance Programme","Centralised R&M","R2001"
"Wolverhampton City Council","http://opendatacommunities.org/id/metropolitan-district-council/wolverhampton","708708","William Gough Limited","86187","82.56","R&M - Departmental planned (external)","130242060","20/02/2019","Maintenance Programme","Centralised R&M","R2001"
"Wolverhampton City Council","http://opendatacommunities.org/id/metropolitan-district-council/wolverhampton","708708","William Gough Limited","86132","1,077.28","R&M - Departmental planned (external)","130241768","20/02/2019","Maintenance Programme","Centralised R&M","R2001"
"Wolverhampton City Council","http://opendatacommunities.org/id/metropolitan-district-council/wolverhampton","708708","William Gough Limited","86150","81.45","R&M - Departmental planned (external)","130241780","20/02/2019","Maintenance Programme","Centralised R&M","R2001"
"Wolverhampton City Council","http://opendatacommunities.org/id/metropolitan-district-council/wolverhampton","708708","William Gough Limited","86175","81.93","R&M - Departmental planned (external)","130242049","20/02/2019","Maintenance Programme","Centralised R&M","R2001"
"Wolverhampton City Council","http://opendatacommunities.org/id/metropolitan-district-council/wolverhampton","708708","William Gough Limited","86123","75.64","R&M - Departmental planned (external)","130241759","20/02/2019","Maintenance Programme","Centralised R&M","R2001"
"Wolverhampton City Council","http://opendatacommunities.org/id/metropolitan-district-council/wolverhampton","708708","William Gough Limited","86195","79.83","R&M - Departmental planned (external)","130242066","20/02/2019","Maintenance Programme","Centralised R&M","R2001"
"Wolverhampton City Council","http://opendatacommunities.org/id/metropolitan-district-council/wolverhampton","708708","William Gough Limited","86155","75.93","R&M - Departmental planned (external)","130241912","20/02/2019","Maintenance Programme","Centralised R&M","R2001"
"Wolverhampton City Council","http://opendatacommunities.org/id/metropolitan-district-council/wolverhampton","708708","William Gough Limited","85752","75.19","R&M - Departmental planned (external)","130235052","20/02/2019","Maintenance Programme","Civic Centre Repairs & Maintenance","R2001"
"Wolverhampton City Council","http://opendatacommunities.org/id/metropolitan-district-council/wolverhampton","708708","William Gough Limited","85538","2,967.36","R&M - Departmental planned (external)","130232668","08/02/2019","Maintenance Programme","Centralised R&M","R2001"
"Wolverhampton City Council","http://opendatacommunities.org/id/metropolitan-district-council/wolverhampton","708708","William Gough Limited","85537","4,883.71","R&M - Departmental planned (external)","130232667","08/02/2019","Maintenance Programme","Centralised R&M","R2001"
"Wolverhampton City Council","http://opendatacommunities.org/id/metropolitan-district-council/wolverhampton","708708","William Gough Limited","85865","300.51","R&M - Departmental planned (external)","130236296","08/02/2019","Maintenance Programme","Civic Centre Repairs & Maintenance","R2001"
"Wolverhampton City Council","http://opendatacommunities.org/id/metropolitan-district-council/wolverhampton","708708","William Gough Limited","84253","3,054.24","R&M - Departmental planned (external)","130211679","08/02/2019","Bereavement Services","Cemeteries","R2001"
"Wolverhampton City Council","http://opendatacommunities.org/id/metropolitan-district-council/wolverhampton","708708","William Gough Limited","85799","1,004.91","R&M - Departmental planned (external)","130241410","08/02/2019","Adult Education","Central Costs","R2001"
"Wolverhampton City Council","http://opendatacommunities.org/id/metropolitan-district-council/wolverhampton","708708","William Gough Limited","85868","46.19","Services - Supplies and Services to service users","130243518","08/02/2019","Safeguarding","Court of Protection, Funerals and Protection of Property","R4408"
"Wolverhampton City Council","http://opendatacommunities.org/id/metropolitan-district-council/wolverhampton","708708","William Gough Limited","85869","46.19","Services - Supplies and Services to service users","130243519","08/02/2019","Safeguarding","Court of Protection, Funerals and Protection of Property","R4408"
"Wolverhampton City Council","http://opendatacommunities.org/id/metropolitan-district-council/wolverhampton","708708","William Gough Limited","85629","1,722.20","R&M - Departmental planned (external)","130234963","08/02/2019","Maintenance Programme","Centralised R&M","R2001"
"Wolverhampton City Council","http://opendatacommunities.org/id/metropolitan-district-council/wolverhampton","708708","William Gough Limited","85748","40.00","R&M - Departmental planned (external)","130235049","08/02/2019","Maintenance Programme","Centralised R&M","R2001"
"Wolverhampton City Council","http://opendatacommunities.org/id/metropolitan-district-council/wolverhampton","708708","William Gough Limited","85232","4,897.97","R&M - Departmental planned (external)","130235215","08/02/2019","Maintenance Programme","Centralised R&M","R2001"
"Wolverhampton City Council","http://opendatacommunities.org/id/metropolitan-district-council/wolverhampton","708708","William Gough Limited","86198","171.35","R&M - Departmental planned (external)","130242069","22/02/2019","Corporate Asset Management","Strategic Asset Management Team","R2001"
"Wolverhampton City Council","http://opendatacommunities.org/id/metropolitan-district-council/wolverhampton","708708","William Gough Limited","85578","13,564.96","R&M - Departmental planned (external)","130233526","15/02/2019","Schools","Pupil Referral Units - Orchard Centre","R2001"
"Wolverhampton City Council","http://opendatacommunities.org/id/metropolitan-district-council/wolverhampton","708708","William Gough Limited","85547","566.53","R&M - Departmental planned (external)","130232895","22/02/2019","Maintenance Programme","Centralised R&M","R2001"
"Wolverhampton City Council","http://opendatacommunities.org/id/metropolitan-district-council/wolverhampton","708708","William Gough Limited","85744","40.00","R&M - Departmental planned (external)","130235045","22/02/2019","Maintenance Programme","Centralised R&M","R2001"
"Wolverhampton City Council","http://opendatacommunities.org/id/metropolitan-district-council/wolverhampton","708708","William Gough Limited","85810","312.56","R&M - Departmental planned (external)","130235748","22/02/2019","Maintenance Programme","Centralised R&M","R2001"
"Wolverhampton City Council","http://opendatacommunities.org/id/metropolitan-district-council/wolverhampton","708708","William Gough Limited","86121","86.25","R&M - Departmental planned (external)","130241757","22/02/2019","Maintenance Programme","Centralised R&M","R2001"
"Wolverhampton City Council","http://opendatacommunities.org/id/metropolitan-district-council/wolverhampton","708708","William Gough Limited","86197","85.09","R&M - Departmental planned (external)","130242068","22/02/2019","Maintenance Programme","Centralised R&M","R2001"
"Wolverhampton City Council","http://opendatacommunities.org/id/metropolitan-district-council/wolverhampton","708708","William Gough Limited","85879","605.63","R&M - Departmental planned (external)","130244235","15/02/2019","Maintenance Programme","Centralised R&M","R2001"
"Wolverhampton City Council","http://opendatacommunities.org/id/metropolitan-district-council/wolverhampton","708708","William Gough Limited","85867","54.53","Services - Supplies and Services to service users","130244327","15/02/2019","Safeguarding","Court of Protection, Funerals and Protection of Property","R4408"
"Wolverhampton City Council","http://opendatacommunities.org/id/metropolitan-district-council/wolverhampton","708708","William Gough Limited","85927","2,234.72","R&M - Departmental planned (external)","130244236","15/02/2019","Maintenance Programme","Centralised R&M","R2001"
"Wolverhampton City Council","http://opendatacommunities.org/id/metropolitan-district-council/wolverhampton","708708","William Gough Limited","85602","159.63","R&M - Departmental planned (external)","130233410","15/02/2019","Maintenance Programme","Centralised R&M","R2001"
"Wolverhampton City Council","http://opendatacommunities.org/id/metropolitan-district-council/wolverhampton","708708","William Gough Limited","85549","174.80","R&M - Departmental planned (external)","130232897","15/02/2019","Maintenance Programme","Civic Centre Repairs & Maintenance","R2001"
"Wolverhampton City Council","http://opendatacommunities.org/id/metropolitan-district-council/wolverhampton","708737","Wmsnt Accessible Transport Ser Limited","7830","281.90","Client Transport","130244347","15/02/2019","Learning Disabilities Care Purchasing","LD Care Purchasing (Spot Placements)","R3042"
"Wolverhampton City Council","http://opendatacommunities.org/id/metropolitan-district-council/wolverhampton","708737","Wmsnt Accessible Transport Ser Limited","7917","404.30","Client Transport","130243058","27/02/2019","Learning Disabilities Care Purchasing","LD Care Purchasing (Spot Placements)","R3042"
"Wolverhampton City Council","http://opendatacommunities.org/id/metropolitan-district-council/wolverhampton","708756","Wolverhampton Citizens Advice Bureau","968-19","65,500.00","TPP - Social Care Support Services","130241781","20/02/2019","Skills","Citizens Advice Bureau","R5501"
"Wolverhampton City Council","http://opendatacommunities.org/id/metropolitan-district-council/wolverhampton","708756","Wolverhampton Citizens Advice Bureau","961-19","16,555.79","TPP - Payments to voluntary groups","130241411","08/02/2019","Local Economy","Special Needs Unit","R5200"
"Wolverhampton City Council","http://opendatacommunities.org/id/metropolitan-district-council/wolverhampton","708758","West Midlands Pension Fund - Wolverhampton City Council","4600062047","400.00","Services - Professional Fees","130241782","20/02/2019","Human Resources","Occupational Health","R4400"
"Wolverhampton City Council","http://opendatacommunities.org/id/metropolitan-district-council/wolverhampton","708761","Wolverhampton Doctors Limited","M2019Q315HL2COMQ","3,250.00","TPP - Public Health Contracts","190567508","27/02/2019","Healthy Life Expectancy","Healthy Lifestyles","R5060"
"Wolverhampton City Council","http://opendatacommunities.org/id/metropolitan-district-council/wolverhampton","708761","Wolverhampton Doctors Limited","M2019Q315HL1IHCQ","19.00","TPP - Public Health Contracts","190567507","27/02/2019","Healthy Life Expectancy","Healthy Lifestyles","R5060"
"Wolverhampton City Council","http://opendatacommunities.org/id/metropolitan-district-council/wolverhampton","708761","Wolverhampton Doctors Limited","M2018Q3.15SHIUDRQ","100.00","TPP - Public Health Contracts","190557280","01/02/2019","Starting and Developing Well","Sexual Health","R5060"
"Wolverhampton City Council","http://opendatacommunities.org/id/metropolitan-district-council/wolverhampton","708761","Wolverhampton Doctors Limited","M2018Q3.15SHIURFQ","100.00","TPP - Public Health Contracts","190557281","01/02/2019","Starting and Developing Well","Sexual Health","R5060"
"Wolverhampton City Council","http://opendatacommunities.org/id/metropolitan-district-council/wolverhampton","708761","Wolverhampton Doctors Limited","M2018Q315SHIUDFQ","100.00","TPP - Public Health Contracts","190557279","01/02/2019","Starting and Developing Well","Sexual Health","R5060"
"Wolverhampton City Council","http://opendatacommunities.org/id/metropolitan-district-council/wolverhampton","708761","Wolverhampton Doctors Limited","M2018Q315SHCIFRQ","360.00","TPP - Public Health Contracts","190557277","01/02/2019","Starting and Developing Well","Sexual Health","R5060"
"Wolverhampton City Council","http://opendatacommunities.org/id/metropolitan-district-council/wolverhampton","708761","Wolverhampton Doctors Limited","M2018Q315SHCIFIQ","100.00","TPP - Public Health Contracts","190557276","01/02/2019","Starting and Developing Well","Sexual Health","R5060"
"Wolverhampton City Council","http://opendatacommunities.org/id/metropolitan-district-council/wolverhampton","708761","Wolverhampton Doctors Limited","M2018Q315SHCHLAQ","16.00","TPP - Public Health Contracts","190557282","01/02/2019","Starting and Developing Well","Sexual Health","R5060"
"Wolverhampton City Council","http://opendatacommunities.org/id/metropolitan-district-council/wolverhampton","708761","Wolverhampton Doctors Limited","M2018Q315SHCIFBQ","80.00","TPP - Public Health Contracts","190557278","01/02/2019","Starting and Developing Well","Sexual Health","R5060"
"Wolverhampton City Council","http://opendatacommunities.org/id/metropolitan-district-council/wolverhampton","708768","Wolverhampton Grammar School","B0007360","5,766.68","TPP - Independent Schools","130242645","01/02/2019","Special Educational Needs","SEN Education OOC","R5036"
"Wolverhampton City Council","http://opendatacommunities.org/id/metropolitan-district-council/wolverhampton","708768","Wolverhampton Grammar School","B0007291","5,933.86","TPP - Independent Schools","130242643","06/02/2019","Special Educational Needs","SEN Education OOC","R5036"
"Wolverhampton City Council","http://opendatacommunities.org/id/metropolitan-district-council/wolverhampton","708768","Wolverhampton Grammar School","B0007292","3,826.92","TPP - Independent Schools","130242644","06/02/2019","Special Educational Needs","SEN Education OOC","R5036"
"Wolverhampton City Council","http://opendatacommunities.org/id/metropolitan-district-council/wolverhampton","708769","Wolverhampton Grand Theatre (1982) Ltd","SIN001082","398.35","Equipment - R & M","130240326","06/02/2019","Maintenance Programme","Centralised R&M","R4003"
"Wolverhampton City Council","http://opendatacommunities.org/id/metropolitan-district-council/wolverhampton","708769","Wolverhampton Grand Theatre (1982) Ltd","SIN001081","294.50","Equipment - R & M","130240325","06/02/2019","Maintenance Programme","Centralised R&M","R4003"
"Wolverhampton City Council","http://opendatacommunities.org/id/metropolitan-district-council/wolverhampton","708770","Wolverhampton Homes Limited","Ref 1031789M","1,557.54","No Recourse to Public Funds","190564984","20/02/2019","Strengthening Families","CP Area 8 - Children�s Village","R6314"
"Wolverhampton City Council","http://opendatacommunities.org/id/metropolitan-district-council/wolverhampton","708770","Wolverhampton Homes Limited","2600029779","60.00","R&M - Departmental planned (external)","130242073","20/02/2019","Maintenance Programme","Centralised R&M","R2001"
"Wolverhampton City Council","http://opendatacommunities.org/id/metropolitan-district-council/wolverhampton","708770","Wolverhampton Homes Limited","17/0741/SAG","2,124.47","Grants paid out to other organisations","190562001","15/02/2019","-","Disabled Facilities Grants","C5011"
"Wolverhampton City Council","http://opendatacommunities.org/id/metropolitan-district-council/wolverhampton","708770","Wolverhampton Homes Limited","1077332N","640.00","No Recourse to Public Funds","190558974","06/02/2019","Strengthening Families","MASH","R6314"
"Wolverhampton City Council","http://opendatacommunities.org/id/metropolitan-district-council/wolverhampton","708770","Wolverhampton Homes Limited","2600029376","50,942.41","Construction and Conversion","130240432","20/02/2019","-","Boiler Replacement Programme","C1100"
"Wolverhampton City Council","http://opendatacommunities.org/id/metropolitan-district-council/wolverhampton","708770","Wolverhampton Homes Limited","2600029699","253.58","Services - Professional Fees","130241297","13/02/2019","Business Continuity & Emergency Planning","Business Continuity & Emergency Planning","R4400"
"Wolverhampton City Council","http://opendatacommunities.org/id/metropolitan-district-council/wolverhampton","708770","Wolverhampton Homes Limited","2600029788","52,840.05","Construction and Conversion","130242937","27/02/2019","-","Boiler Replacement Programme","C1100"
"Wolverhampton City Council","http://opendatacommunities.org/id/metropolitan-district-council/wolverhampton","708770","Wolverhampton Homes Limited","2600029394","87,282.70","Construction and Conversion","130240433","22/02/2019","-","External Improvement Programme","C1100"
"Wolverhampton City Council","http://opendatacommunities.org/id/metropolitan-district-council/wolverhampton","708770","Wolverhampton Homes Limited","2600028942","106,261.88","Construction and Conversion","130239435","20/02/2019","-","External Improvement Programme","C1100"
"Wolverhampton City Council","http://opendatacommunities.org/id/metropolitan-district-council/wolverhampton","708770","Wolverhampton Homes Limited","2600018177","12,908.37","Adaptations","130157043","22/02/2019","Independent Living Service","Independent Living Service","R4411"
"Wolverhampton City Council","http://opendatacommunities.org/id/metropolitan-district-council/wolverhampton","708770","Wolverhampton Homes Limited","HF10551/SG","53,836.70","Insurance - General","190565694","22/02/2019","Audit Services","Property Insurances","R4962"
"Wolverhampton City Council","http://opendatacommunities.org/id/metropolitan-district-council/wolverhampton","708781","Wolverhampton Science Park Limited/Uow.","45073522","121.00","Computing - Internet","130242816","27/02/2019","Estates and Valuations","Rooms 134, 134a, 134b, 153, 158 Science Park","R4537"
"Wolverhampton City Council","http://opendatacommunities.org/id/metropolitan-district-council/wolverhampton","708781","Wolverhampton Science Park Limited/Uow.","45073523","121.00","Computing - Internet","130242646","27/02/2019","Estates and Valuations","Rooms 134, 134a, 134b, 153, 158 Science Park","R4537"
"Wolverhampton City Council","http://opendatacommunities.org/id/metropolitan-district-council/wolverhampton","708781","Wolverhampton Science Park Limited/Uow.","45073061","3,345.63","Service Charges","130240567","08/02/2019","Estates and Valuations","Rooms 134, 134a, 134b, 153, 158 Science Park","R2205"
"Wolverhampton City Council","http://opendatacommunities.org/id/metropolitan-district-council/wolverhampton","708781","Wolverhampton Science Park Limited/Uow.","45073063","5,366.50","Service Charges","130241588","08/02/2019","Estates and Valuations","Rooms 134, 134a, 134b, 153, 158 Science Park","R2205"
"Wolverhampton City Council","http://opendatacommunities.org/id/metropolitan-district-council/wolverhampton","708781","Wolverhampton Science Park Limited/Uow.","45073062","5,366.50","Service Charges","130240568","08/02/2019","Estates and Valuations","Rooms 134, 134a, 134b, 153, 158 Science Park","R2205"
"Wolverhampton City Council","http://opendatacommunities.org/id/metropolitan-district-council/wolverhampton","708787","Wolverhampton Travel","181905","1,772.90","Client Transport","130243060","08/02/2019","Special Educational Needs","Special - Transport","R3042"
"Wolverhampton City Council","http://opendatacommunities.org/id/metropolitan-district-council/wolverhampton","708787","Wolverhampton Travel","181905A","1,638.80","Client Transport","130243061","08/02/2019","Special Educational Needs","Special - Transport","R3042"
"Wolverhampton City Council","http://opendatacommunities.org/id/metropolitan-district-council/wolverhampton","708788","Wolverhampton Tree Service","9719","15,456.65","Construction and Conversion","130244697","27/02/2019","-","GF - Blue Network","C1100"
"Wolverhampton City Council","http://opendatacommunities.org/id/metropolitan-district-council/wolverhampton","708790","Wolverhampton Voluntary Sector Cncl","1793","48,000.00","TPP - Social Care Support Services","130243546","13/02/2019","Skills","Wolverhampton Voluntary Sector Council","R5501"
"Wolverhampton City Council","http://opendatacommunities.org/id/metropolitan-district-council/wolverhampton","708790","Wolverhampton Voluntary Sector Cncl","1794","15,000.00","TPP - Social Care Support Services","130243547","13/02/2019","Skills","Wolverhampton Volunteer Bureau","R5501"
"Wolverhampton City Council","http://opendatacommunities.org/id/metropolitan-district-council/wolverhampton","708793","Wolverhampton Waste Services Limited","W05/19","606,139.78","TPP - Other contractors","130241040","13/02/2019","Waste and Recycling Service","Waste Disposal - General","R5099"
"Wolverhampton City Council","http://opendatacommunities.org/id/metropolitan-district-council/wolverhampton","708793","Wolverhampton Waste Services Limited","W06/19","16,737.61","TPP - Other contractors","130241041","13/02/2019","Waste and Recycling Service","Waste Disposal - General","R5099"
"Wolverhampton City Council","http://opendatacommunities.org/id/metropolitan-district-council/wolverhampton","708801","Wolverhampton Youth Zone","WYZ474","60.00","Room Hire","130242510","27/02/2019","Community Safety","SWP - Infrastructure","R2201"
"Wolverhampton City Council","http://opendatacommunities.org/id/metropolitan-district-council/wolverhampton","708801","Wolverhampton Youth Zone","WYZ475","60.00","Room Hire","130242818","27/02/2019","Community Safety","SWP - Infrastructure","R2201"
"Wolverhampton City Council","http://opendatacommunities.org/id/metropolitan-district-council/wolverhampton","708801","Wolverhampton Youth Zone","WYZ467","50,000.00","Grant Payments","130241043","13/02/2019","Specialist Support","Youth Zone","R4700"
"Wolverhampton City Council","http://opendatacommunities.org/id/metropolitan-district-council/wolverhampton","708801","Wolverhampton Youth Zone","WYZ391","90.00","Room Hire","130242817","06/02/2019","Community Safety","SWP - Infrastructure","R2201"
"Wolverhampton City Council","http://opendatacommunities.org/id/metropolitan-district-council/wolverhampton","708804","Wombourne Travel Limited","WOM0011","1,700.00","Client Transport","130242939","27/02/2019","Special Educational Needs","Special - Transport","R3042"
"Wolverhampton City Council","http://opendatacommunities.org/id/metropolitan-district-council/wolverhampton","708804","Wombourne Travel Limited","WOM0010","2,001.84","Client Transport","130242938","27/02/2019","Special Educational Needs","Special - Transport","R3042"
"Wolverhampton City Council","http://opendatacommunities.org/id/metropolitan-district-council/wolverhampton","708804","Wombourne Travel Limited","WOM009","2,280.00","Client Transport","130242940","27/02/2019","Special Educational Needs","Special - Transport","R3042"
"Wolverhampton City Council","http://opendatacommunities.org/id/metropolitan-district-council/wolverhampton","708820","Woodstock Farm Boarding Kennels","0991","43.99","Storage","130244503","20/02/2019","Safeguarding","Court of Protection, Funerals and Protection of Property","R4910"
"Wolverhampton City Council","http://opendatacommunities.org/id/metropolitan-district-council/wolverhampton","708820","Woodstock Farm Boarding Kennels","0990","310.00","Storage","130244502","20/02/2019","Safeguarding","Court of Protection, Funerals and Protection of Property","R4910"
"Wolverhampton City Council","http://opendatacommunities.org/id/metropolitan-district-council/wolverhampton","708820","Woodstock Farm Boarding Kennels","0989","230.00","Storage","130244501","20/02/2019","Safeguarding","Court of Protection, Funerals and Protection of Property","R4910"
"Wolverhampton City Council","http://opendatacommunities.org/id/metropolitan-district-council/wolverhampton","708826","Worcestershire County Council","IN00049684","17,770.20","Client Transport - SEN","130245127","22/02/2019","Special Educational Needs","Special - Transport","R3043"
"Wolverhampton City Council","http://opendatacommunities.org/id/metropolitan-district-council/wolverhampton","708826","Worcestershire County Council","IN00086439","144.28","TPP - Social Care Support Services","130243548","08/02/2019","Strengthening Families","CP Area 8 - Children�s Village","R5501"
"Wolverhampton City Council","http://opendatacommunities.org/id/metropolitan-district-council/wolverhampton","708842","Wrekin Turf Growers","34646","247.00","Materials","130242216","15/02/2019","Environmental Maintenance","Arbor Scheme","R4007"
"Wolverhampton City Council","http://opendatacommunities.org/id/metropolitan-district-council/wolverhampton","708842","Wrekin Turf Growers","34598","105.00","Materials","130240569","06/02/2019","Environmental Maintenance","Ground Maintenance East","R4007"
"Wolverhampton City Council","http://opendatacommunities.org/id/metropolitan-district-council/wolverhampton","708842","Wrekin Turf Growers","34655","807.50","Materials","130243299","27/02/2019","Environmental Maintenance","Ground Maintenance East","R4007"
"Wolverhampton City Council","http://opendatacommunities.org/id/metropolitan-district-council/wolverhampton","708842","Wrekin Turf Growers","34613","950.00","Materials","130240780","06/02/2019","Environmental Maintenance","Direct Schools","R4007"
"Wolverhampton City Council","http://opendatacommunities.org/id/metropolitan-district-council/wolverhampton","708862","Xerox (UK) Limited","900182620","19,971.14","Equipment - Hire","130243716","27/02/2019","ICTS","Document Centre - General","R4001"
"Wolverhampton City Council","http://opendatacommunities.org/id/metropolitan-district-council/wolverhampton","708865","XMA Limited","KO35665","62.60","Computing - Consumables","130240570","06/02/2019","ICTS","Strategic ICTS (ICT Service Budget)","R4532"
"Wolverhampton City Council","http://opendatacommunities.org/id/metropolitan-district-council/wolverhampton","708865","XMA Limited","KO39169","3,393.51","Computing - Consumables","130240781","06/02/2019","ICTS","Strategic ICTS (ICT Service Budget)","R4532"
"Wolverhampton City Council","http://opendatacommunities.org/id/metropolitan-district-council/wolverhampton","708865","XMA Limited","KO92536","14.00","Computing - Consumables","130242941","27/02/2019","ICTS","Strategic ICTS (ICT Service Budget)","R4532"
"Wolverhampton City Council","http://opendatacommunities.org/id/metropolitan-district-council/wolverhampton","708865","XMA Limited","KO54867","35.00","Computing - Consumables","130241299","13/02/2019","ICTS","Strategic ICTS (ICT Service Budget)","R4532"
"Wolverhampton City Council","http://opendatacommunities.org/id/metropolitan-district-council/wolverhampton","708867","Xpress Software Solutions Limited","2018672","520.50","Training Expenses","130243717","13/02/2019","Public Service Reform","Electoral Registration","R1650"
"Wolverhampton City Council","http://opendatacommunities.org/id/metropolitan-district-council/wolverhampton","708886","Ymca City Tots","6788","48.00","TPP - Child Care provided for client","130161032","22/02/2019","Adult Education","Discretionary Fund","R5034"
"Wolverhampton City Council","http://opendatacommunities.org/id/metropolitan-district-council/wolverhampton","708886","Ymca City Tots","6776","192.00","TPP - Child Care provided for client","130159111","22/02/2019","Adult Education","Discretionary Fund","R5034"
"Wolverhampton City Council","http://opendatacommunities.org/id/metropolitan-district-council/wolverhampton","708886","Ymca City Tots","6811","180.00","TPP - Child Care provided for client","130171246","22/02/2019","Adult Education","Discretionary Fund","R5034"
"Wolverhampton City Council","http://opendatacommunities.org/id/metropolitan-district-council/wolverhampton","708886","Ymca City Tots","21005","315.00","TPP - Child Care provided for client","130243066","08/02/2019","Adult Education","Discretionary Fund","R5034"
"Wolverhampton City Council","http://opendatacommunities.org/id/metropolitan-district-council/wolverhampton","708886","Ymca City Tots","20999","490.00","TPP - Child Care provided for client","130243065","08/02/2019","Adult Education","Discretionary Fund","R5034"
"Wolverhampton City Council","http://opendatacommunities.org/id/metropolitan-district-council/wolverhampton","708886","Ymca City Tots","20987","490.00","TPP - Child Care provided for client","130243064","08/02/2019","Adult Education","Discretionary Fund","R5034"
"Wolverhampton City Council","http://opendatacommunities.org/id/metropolitan-district-council/wolverhampton","708886","Ymca City Tots","20971","140.00","TPP - Child Care provided for client","130243063","08/02/2019","Adult Education","Discretionary Fund","R5034"
"Wolverhampton City Council","http://opendatacommunities.org/id/metropolitan-district-council/wolverhampton","708886","Ymca City Tots","20962","490.00","TPP - Child Care provided for client","130243062","08/02/2019","Adult Education","Discretionary Fund","R5034"
"Wolverhampton City Council","http://opendatacommunities.org/id/metropolitan-district-council/wolverhampton","708886","Ymca City Tots","20505","420.00","TPP - Child Care provided for client","130242217","01/02/2019","Adult Education","Discretionary Fund","R5034"
"Wolverhampton City Council","http://opendatacommunities.org/id/metropolitan-district-council/wolverhampton","709154","A And A Automatics Limited","9815","393.40","R&M - Departmental planned (external)","130241590","08/02/2019","Markets","Wholesale Market Facilities Management","R2001"
"Wolverhampton City Council","http://opendatacommunities.org/id/metropolitan-district-council/wolverhampton","709154","A And A Automatics Limited","9835","155.00","R&M - Departmental planned (external)","130244349","27/02/2019","Facilities Management","Caretakers Community Centre","R2001"
"Wolverhampton City Council","http://opendatacommunities.org/id/metropolitan-district-council/wolverhampton","709352","A Hand Services Limited","1203DL315","130.00","Drainage Charges","130244505","20/02/2019","Adult Education","Old Hall Street Main","R2404"
"Wolverhampton City Council","http://opendatacommunities.org/id/metropolitan-district-council/wolverhampton","709352","A Hand Services Limited","1203DL295","6,750.00","Drainage Charges","130244504","22/02/2019","Adult Education","Old Hall Street Main","R2404"
"Wolverhampton City Council","http://opendatacommunities.org/id/metropolitan-district-council/wolverhampton","709352","A Hand Services Limited","1203DJ872","585.00","Drainage Charges","130244129","13/02/2019","Adult Education","Central Costs","R2404"
"Wolverhampton City Council","http://opendatacommunities.org/id/metropolitan-district-council/wolverhampton","709561","A O Darby","WHTW1218-001","539.07","Services - Professional Fees","130241044","13/02/2019","Visitor Economy","Technical Support - ACE NPO WAG","R4400"
"Wolverhampton City Council","http://opendatacommunities.org/id/metropolitan-district-council/wolverhampton","709704","A.B.C.- Countdown Cars Limited","5575REISSUE","125.00","Client Transport","130245129","27/02/2019","Special Educational Needs","SEN Education OOC","R3042"
"Wolverhampton City Council","http://opendatacommunities.org/id/metropolitan-district-council/wolverhampton","709704","A.B.C.- Countdown Cars Limited","6026","75.00","Client Transport","130240436","20/02/2019","Inclusion Support","Inclusion Support","R3042"
"Wolverhampton City Council","http://opendatacommunities.org/id/metropolitan-district-council/wolverhampton","709704","A.B.C.- Countdown Cars Limited","5758RE-ISSUE","250.00","Client Transport","130240782","06/02/2019","Special Educational Needs","SEN Education OOC","R3042"
"Wolverhampton City Council","http://opendatacommunities.org/id/metropolitan-district-council/wolverhampton","709704","A.B.C.- Countdown Cars Limited","6008","125.00","Client Transport","130240328","06/02/2019","Special Educational Needs","SEN Education OOC","R3042"
"Wolverhampton City Council","http://opendatacommunities.org/id/metropolitan-district-council/wolverhampton","710089","ABC Early Learning & Childcare Cent","Adj for NEF Spring 19 1st Inst","34,760.32","TPP - Private Nursery Education Funding","190559673","08/02/2019","Early Years","Early Years Universal Entitlement for 3 and 4 Year Olds","R5035"
"Wolverhampton City Council","http://opendatacommunities.org/id/metropolitan-district-council/wolverhampton","710089","ABC Early Learning & Childcare Cent","Adj for TFT Spring 19 1st Inst","5,395.10","TPP - Private Nursery Education Funding","190559672","08/02/2019","Early Years","Early Years Entitlement Funding for Disadvantaged 2 Year Olds","R5035"
"Wolverhampton City Council","http://opendatacommunities.org/id/metropolitan-district-council/wolverhampton","710375","Access Hire Nationwide Limited","78688","90.00","Equipment - Hire","130242819","06/02/2019","Highways Maintenance","Planned Highways Maintenance","R4001"
"Wolverhampton City Council","http://opendatacommunities.org/id/metropolitan-district-council/wolverhampton","710375","Access Hire Nationwide Limited","78612","90.00","Equipment - Hire","130242365","06/02/2019","Highways Maintenance","Planned Highways Maintenance","R4001"
"Wolverhampton City Council","http://opendatacommunities.org/id/metropolitan-district-council/wolverhampton","710375","Access Hire Nationwide Limited","78570","826.00","Equipment - Hire","130242223","06/02/2019","Highways Maintenance","Planned Highways Maintenance","R4001"
"Wolverhampton City Council","http://opendatacommunities.org/id/metropolitan-district-council/wolverhampton","710375","Access Hire Nationwide Limited","78733","45.00","Equipment - Hire","130243067","06/02/2019","Highways Maintenance","Planned Highways Maintenance","R4001"
"Wolverhampton City Council","http://opendatacommunities.org/id/metropolitan-district-council/wolverhampton","710375","Access Hire Nationwide Limited","78719","45.00","Equipment - Hire","130242820","06/02/2019","Highways Maintenance","Planned Highways Maintenance","R4001"
"Wolverhampton City Council","http://opendatacommunities.org/id/metropolitan-district-council/wolverhampton","710375","Access Hire Nationwide Limited","78568","1,276.00","Hire of Vehicles","190560408","13/02/2019","Fleet Services","Fleet Management","R3200"
"Wolverhampton City Council","http://opendatacommunities.org/id/metropolitan-district-council/wolverhampton","710375","Access Hire Nationwide Limited","78566","1,298.00","Hire of Vehicles","190560406","13/02/2019","Fleet Services","Fleet Management","R3200"
"Wolverhampton City Council","http://opendatacommunities.org/id/metropolitan-district-council/wolverhampton","710375","Access Hire Nationwide Limited","78567","1,298.00","Hire of Vehicles","190560407","13/02/2019","Fleet Services","Fleet Management","R3200"
"Wolverhampton City Council","http://opendatacommunities.org/id/metropolitan-district-council/wolverhampton","710375","Access Hire Nationwide Limited","78569","1,276.00","Hire of Vehicles","190560409","13/02/2019","Fleet Services","Fleet Management","R3200"
"Wolverhampton City Council","http://opendatacommunities.org/id/metropolitan-district-council/wolverhampton","710375","Access Hire Nationwide Limited","C4583","-480.00","Equipment - Hire","130244509","20/02/2019","Highways Maintenance","Planned Highways Maintenance","R4001"
"Wolverhampton City Council","http://opendatacommunities.org/id/metropolitan-district-council/wolverhampton","710375","Access Hire Nationwide Limited","78878","45.00","Equipment - Hire","130244506","20/02/2019","Highways Maintenance","Planned Highways Maintenance","R4001"
"Wolverhampton City Council","http://opendatacommunities.org/id/metropolitan-district-council/wolverhampton","710375","Access Hire Nationwide Limited","78880","237.00","Equipment - Hire","130244508","20/02/2019","Highways Maintenance","Planned Highways Maintenance","R4001"
"Wolverhampton City Council","http://opendatacommunities.org/id/metropolitan-district-council/wolverhampton","710375","Access Hire Nationwide Limited","78860","95.00","Equipment - Hire","130244248","20/02/2019","Highways Maintenance","Planned Highways Maintenance","R4001"
"Wolverhampton City Council","http://opendatacommunities.org/id/metropolitan-district-council/wolverhampton","710375","Access Hire Nationwide Limited","78879","225.00","Equipment - Hire","130244507","20/02/2019","Highways Maintenance","Planned Highways Maintenance","R4001"
"Wolverhampton City Council","http://opendatacommunities.org/id/metropolitan-district-council/wolverhampton","710507","Assoc.Board Royal Schools Of Music","A19/68163","1,228.00","Exam Expenses (Non-Employee)","130245524","27/02/2019","School Planning & Resources","Music Support Team","R4630"
"Wolverhampton City Council","http://opendatacommunities.org/id/metropolitan-district-council/wolverhampton","710569","British Gas Business","711380334","13.41","Gas","190563311","20/02/2019","Estates and Valuations","Industrial Premises ; Fordhouse Road","R2101"
"Wolverhampton City Council","http://opendatacommunities.org/id/metropolitan-district-council/wolverhampton","710569","British Gas Business","711380334a","583.00","Gas","190563312","20/02/2019","Estates and Valuations","Industrial Premises ; Fordhouse Road","R2101"
"Wolverhampton City Council","http://opendatacommunities.org/id/metropolitan-district-council/wolverhampton","710569","British Gas Business","968415947","16.54","Electricity","190563314","20/02/2019","Estates and Valuations","Offices ; Bond House","R2100"
"Wolverhampton City Council","http://opendatacommunities.org/id/metropolitan-district-council/wolverhampton","710569","British Gas Business","132394628a","135.00","Gas","190563313","20/02/2019","Estates and Valuations","Industrial Premises ; Fordhouse Road","R2101"
"Wolverhampton City Council","http://opendatacommunities.org/id/metropolitan-district-council/wolverhampton","710569","British Gas Business","974299359","52.27","Electricity","190563309","20/02/2019","Estates and Valuations","Industrial Premises ; Fordhouse Road","R2100"
"Wolverhampton City Council","http://opendatacommunities.org/id/metropolitan-district-council/wolverhampton","710569","British Gas Business","975251470","52.27","Electricity","190563307","20/02/2019","Estates and Valuations","Industrial Premises ; Fordhouse Road","R2100"
"Wolverhampton City Council","http://opendatacommunities.org/id/metropolitan-district-council/wolverhampton","710569","British Gas Business","984253575","52.27","Electricity","190563308","20/02/2019","Estates and Valuations","Industrial Premises ; Fordhouse Road","R2100"
"Wolverhampton City Council","http://opendatacommunities.org/id/metropolitan-district-council/wolverhampton","710569","British Gas Business","984253575a","90.00","Electricity","190563310","20/02/2019","Estates and Valuations","Industrial Premises ; Fordhouse Road","R2100"
"Wolverhampton City Council","http://opendatacommunities.org/id/metropolitan-district-council/wolverhampton","710569","British Gas Business","973376689","76.62","Electricity","190566471","27/02/2019","City Development","Southside","R2100"
"Wolverhampton City Council","http://opendatacommunities.org/id/metropolitan-district-council/wolverhampton","710569","British Gas Business","280851118","60.09","Gas","190566470","27/02/2019","Housing Revenue Account","Amounts to be Settled with Wolverhampton Homes","R2101"
"Wolverhampton City Council","http://opendatacommunities.org/id/metropolitan-district-council/wolverhampton","710569","British Gas Business","968412662","606.98","Electricity","190566472","27/02/2019","Corporate Asset Management","Central Utilities to Recharge","R2100"
"Wolverhampton City Council","http://opendatacommunities.org/id/metropolitan-district-council/wolverhampton","710569","British Gas Business","221312928","18.24","Electricity","190566469","27/02/2019","Estates and Valuations","Industrial Premises ; Fordhouse Road","R2100"
"Wolverhampton City Council","http://opendatacommunities.org/id/metropolitan-district-council/wolverhampton","710573","Western Power Distribution (West Mids) t/a Western Power Distribution","KI00142535","776.90","TPP - Maintenance on Other Roads","130242224","20/02/2019","Street Lighting","Street Lighting Maintenance","R5710"
"Wolverhampton City Council","http://opendatacommunities.org/id/metropolitan-district-council/wolverhampton","710573","Western Power Distribution (West Mids) t/a Western Power Distribution","KI00142051","478.51","TPP - Maintenance on Other Roads","130243923","13/02/2019","Street Lighting","Street Lighting Maintenance","R5710"
"Wolverhampton City Council","http://opendatacommunities.org/id/metropolitan-district-council/wolverhampton","710573","Western Power Distribution (West Mids) t/a Western Power Distribution","KI00142487","426.13","TPP - Maintenance on Other Roads","130241300","13/02/2019","Street Lighting","Street Lighting Maintenance","R5710"
"Wolverhampton City Council","http://opendatacommunities.org/id/metropolitan-district-council/wolverhampton","710573","Western Power Distribution (West Mids) t/a Western Power Distribution","KP00150622","681.23","TPP - Maintenance on Other Roads","130244826","22/02/2019","Street Lighting","Street Lighting Maintenance","R5710"
"Wolverhampton City Council","http://opendatacommunities.org/id/metropolitan-district-council/wolverhampton","710573","Western Power Distribution (West Mids) t/a Western Power Distribution","KP00150687","681.23","TPP - Maintenance on Other Roads","130244827","22/02/2019","Street Lighting","Street Lighting Maintenance","R5710"
"Wolverhampton City Council","http://opendatacommunities.org/id/metropolitan-district-council/wolverhampton","710573","Western Power Distribution (West Mids) t/a Western Power Distribution","KP00150207","1,410.09","TPP - Maintenance on Other Roads","130241301","06/02/2019","Street Lighting","Street Lighting Maintenance","R5710"
"Wolverhampton City Council","http://opendatacommunities.org/id/metropolitan-district-council/wolverhampton","710573","Western Power Distribution (West Mids) t/a Western Power Distribution","KI00142123","1,825.13","TPP - Maintenance on Other Roads","130242821","13/02/2019","Street Lighting","Street Lighting Maintenance","R5710"
"Wolverhampton City Council","http://opendatacommunities.org/id/metropolitan-district-council/wolverhampton","710573","Western Power Distribution (West Mids) t/a Western Power Distribution","KP00150677","552.33","Construction and Conversion","130242225","13/02/2019","-","Integrated Transport","C1100"
"Wolverhampton City Council","http://opendatacommunities.org/id/metropolitan-district-council/wolverhampton","710573","Western Power Distribution (West Mids) t/a Western Power Distribution","KP00150609","681.23","TPP - Maintenance on Other Roads","130244825","22/02/2019","Street Lighting","Street Lighting Maintenance","R5710"
"Wolverhampton City Council","http://opendatacommunities.org/id/metropolitan-district-council/wolverhampton","710573","Western Power Distribution (West Mids) t/a Western Power Distribution","KP00150608","557.19","TPP - Maintenance on Other Roads","130244824","22/02/2019","Street Lighting","Street Lighting Maintenance","R5710"
"Wolverhampton City Council","http://opendatacommunities.org/id/metropolitan-district-council/wolverhampton","710600","E H Smith Builders Merchant LTD","0005/00127574","233.20","Materials","130242077","20/02/2019","Highways Maintenance","Patching","R4007"
"Wolverhampton City Council","http://opendatacommunities.org/id/metropolitan-district-council/wolverhampton","710600","E H Smith Builders Merchant LTD","0005/00126703","396.00","Materials","130242076","20/02/2019","Highways Maintenance","Patching","R4007"
"Wolverhampton City Council","http://opendatacommunities.org/id/metropolitan-district-council/wolverhampton","710612","Dr Kanchan","FOS4177","87.50","Services - Professional Fees","190565760","22/02/2019","Children & Young People In Care","Fostering Team & Allowances","R4400"
"Wolverhampton City Council","http://opendatacommunities.org/id/metropolitan-district-council/wolverhampton","710612","Dr Kanchan","FOS4176","87.50","Services - Professional Fees","190565759","22/02/2019","Children & Young People In Care","Fostering Team & Allowances","R4400"
"Wolverhampton City Council","http://opendatacommunities.org/id/metropolitan-district-council/wolverhampton","710615","Poplars Medical Practice","M2019Q315HL2COMQ","175.00","TPP - Public Health Contracts","190567466","27/02/2019","Healthy Life Expectancy","Healthy Lifestyles","R5060"
"Wolverhampton City Council","http://opendatacommunities.org/id/metropolitan-district-council/wolverhampton","710615","Poplars Medical Practice","M2019Q315HL1IHCQ","1.00","TPP - Public Health Contracts","190567465","27/02/2019","Healthy Life Expectancy","Healthy Lifestyles","R5060"
"Wolverhampton City Council","http://opendatacommunities.org/id/metropolitan-district-council/wolverhampton","710620","ARCO Central LTD","934914475","57.76","Equipment - Purchase","190563466","20/02/2019","Fleet Services","Fleet Management","R4000"
"Wolverhampton City Council","http://opendatacommunities.org/id/metropolitan-district-council/wolverhampton","710664","NonStop Recruitment LTD","155864","787.50","Agency Staff","130240437","27/02/2019","Strengthening Families","CP Area 1 - Eastfield","R1100"
"Wolverhampton City Council","http://opendatacommunities.org/id/metropolitan-district-council/wolverhampton","710664","NonStop Recruitment LTD","152530","1,312.50","Agency Staff","130230926","27/02/2019","Strengthening Families","CP Area 1 - Eastfield","R1100"
"Wolverhampton City Council","http://opendatacommunities.org/id/metropolitan-district-council/wolverhampton","710664","NonStop Recruitment LTD","155072","1,312.50","Agency Staff","130238218","27/02/2019","Strengthening Families","CP Area 1 - Eastfield","R1100"
"Wolverhampton City Council","http://opendatacommunities.org/id/metropolitan-district-council/wolverhampton","710664","NonStop Recruitment LTD","153916","1,312.50","Agency Staff","130234847","27/02/2019","Strengthening Families","CP Area 1 - Eastfield","R1100"
"Wolverhampton City Council","http://opendatacommunities.org/id/metropolitan-district-council/wolverhampton","710664","NonStop Recruitment LTD","153651","1,312.50","Agency Staff","130234030","27/02/2019","Strengthening Families","CP Area 1 - Eastfield","R1100"
"Wolverhampton City Council","http://opendatacommunities.org/id/metropolitan-district-council/wolverhampton","710664","NonStop Recruitment LTD","153355","1,312.50","Agency Staff","130233253","27/02/2019","Strengthening Families","CP Area 1 - Eastfield","R1100"
"Wolverhampton City Council","http://opendatacommunities.org/id/metropolitan-district-council/wolverhampton","710664","NonStop Recruitment LTD","153915","1,312.50","Agency Staff","130234846","27/02/2019","Strengthening Families","CP Area 1 - Eastfield","R1100"
"Wolverhampton City Council","http://opendatacommunities.org/id/metropolitan-district-council/wolverhampton","710664","NonStop Recruitment LTD","155191","1,312.50","Agency Staff","130238488","27/02/2019","Strengthening Families","CP Area 1 - Eastfield","R1100"
"Wolverhampton City Council","http://opendatacommunities.org/id/metropolitan-district-council/wolverhampton","710664","NonStop Recruitment LTD","156540","1,312.50","Agency Staff","130242823","27/02/2019","Strengthening Families","CP Area 1 - Eastfield","R1100"
"Wolverhampton City Council","http://opendatacommunities.org/id/metropolitan-district-council/wolverhampton","710664","NonStop Recruitment LTD","155360","1,225.00","Agency Staff","130238929","27/02/2019","Strengthening Families","CP Area 1 - Eastfield","R1100"
"Wolverhampton City Council","http://opendatacommunities.org/id/metropolitan-district-council/wolverhampton","710664","NonStop Recruitment LTD","155359","1,312.50","Agency Staff","130238928","27/02/2019","Strengthening Families","CP Area 1 - Eastfield","R1100"
"Wolverhampton City Council","http://opendatacommunities.org/id/metropolitan-district-council/wolverhampton","710664","NonStop Recruitment LTD","155477","1,312.50","Agency Staff","130239002","27/02/2019","Strengthening Families","CP Area 1 - Eastfield","R1100"
"Wolverhampton City Council","http://opendatacommunities.org/id/metropolitan-district-council/wolverhampton","710664","NonStop Recruitment LTD","156429","1,312.50","Agency Staff","130242226","27/02/2019","Strengthening Families","CP Area 1 - Eastfield","R1100"
"Wolverhampton City Council","http://opendatacommunities.org/id/metropolitan-district-council/wolverhampton","710664","NonStop Recruitment LTD","155865","262.50","Agency Staff","130240574","06/02/2019","Strengthening Families","CP Area 1 - Eastfield","R1100"
"Wolverhampton City Council","http://opendatacommunities.org/id/metropolitan-district-council/wolverhampton","710664","NonStop Recruitment LTD","156193","1,312.50","Agency Staff","130241591","15/02/2019","Strengthening Families","CP Area 1 - Eastfield","R1100"
"Wolverhampton City Council","http://opendatacommunities.org/id/metropolitan-district-council/wolverhampton","710745","Medequip Assistive Technology Ltd","43360","978.99","Equipment - R & M","130240438","08/02/2019","Maintenance Programme","Centralised R&M","R4003"
"Wolverhampton City Council","http://opendatacommunities.org/id/metropolitan-district-council/wolverhampton","710745","Medequip Assistive Technology Ltd","43495","285.54","Equipment - R & M","130243550","27/02/2019","Maintenance Programme","Centralised R&M","R4003"
"Wolverhampton City Council","http://opendatacommunities.org/id/metropolitan-district-council/wolverhampton","710747","DW Shotton Landscapes LTD","19/001","1,700.00","Services - Professional Fees","130242366","13/02/2019","Environmental Maintenance","Parks / Open Spaces - Repairs & Maintenance","R4400"
"Wolverhampton City Council","http://opendatacommunities.org/id/metropolitan-district-council/wolverhampton","710780","Wilson & Scott (Highways) LTD","28980","81.20","Construction and Conversion","130241785","15/02/2019","-","Safety Programme","C1100"
"Wolverhampton City Council","http://opendatacommunities.org/id/metropolitan-district-council/wolverhampton","710780","Wilson & Scott (Highways) LTD","28650","2,428.61","Construction and Conversion","130237526","15/02/2019","-","Safety Programme","C1100"
"Wolverhampton City Council","http://opendatacommunities.org/id/metropolitan-district-council/wolverhampton","710780","Wilson & Scott (Highways) LTD","29045","803.73","TPP - Maintenance on Principal Roads","130243068","27/02/2019","Highways Maintenance","Anti-skid Surfacing","R5700"
"Wolverhampton City Council","http://opendatacommunities.org/id/metropolitan-district-council/wolverhampton","710780","Wilson & Scott (Highways) LTD","28979","3,653.77","TPP - Maintenance on Principal Roads","130241784","15/02/2019","Highways Maintenance","Anti-skid Surfacing","R5700"
"Wolverhampton City Council","http://opendatacommunities.org/id/metropolitan-district-council/wolverhampton","710780","Wilson & Scott (Highways) LTD","2630","-1,360.04","Construction and Conversion","130243924","15/02/2019","-","Safety Programme","C1100"
"Wolverhampton City Council","http://opendatacommunities.org/id/metropolitan-district-council/wolverhampton","710780","Wilson & Scott (Highways) LTD","29046","52.25","Construction and Conversion","130243069","27/02/2019","-","Safety Programme","C1100"
"Wolverhampton City Council","http://opendatacommunities.org/id/metropolitan-district-council/wolverhampton","710781","Bilbrook Medical Centre","FOS4180","45.00","Services - Professional Fees","190565763","22/02/2019","Children & Young People In Care","Fostering Team & Allowances","R4400"
"Wolverhampton City Council","http://opendatacommunities.org/id/metropolitan-district-council/wolverhampton","710786","St Judes C of E Primary Academy","Early Years Autumn term Final Payment and Spring Term Interim Payment","57,621.06","Grant Payments","190561946","15/02/2019","Central Education","Academy Early years","R4700"
"Wolverhampton City Council","http://opendatacommunities.org/id/metropolitan-district-council/wolverhampton","710795","The Dudley Group NHS Foundation Trust","2000005685","624.00","TPP - Public Health Contracts","130243300","08/02/2019","Starting and Developing Well","Sexual Health","R5060"
"Wolverhampton City Council","http://opendatacommunities.org/id/metropolitan-district-council/wolverhampton","710795","The Dudley Group NHS Foundation Trust","2000005772","312.00","TPP - Public Health Contracts","130243304","08/02/2019","Starting and Developing Well","Sexual Health","R5060"
"Wolverhampton City Council","http://opendatacommunities.org/id/metropolitan-district-council/wolverhampton","710795","The Dudley Group NHS Foundation Trust","2000005717","468.00","TPP - Public Health Contracts","130243301","08/02/2019","Starting and Developing Well","Sexual Health","R5060"
"Wolverhampton City Council","http://opendatacommunities.org/id/metropolitan-district-council/wolverhampton","710795","The Dudley Group NHS Foundation Trust","2000005736","7,078.66","TPP - Public Health Contracts","130243302","08/02/2019","Starting and Developing Well","Sexual Health","R5060"
"Wolverhampton City Council","http://opendatacommunities.org/id/metropolitan-district-council/wolverhampton","710795","The Dudley Group NHS Foundation Trust","2000005737","468.00","TPP - Public Health Contracts","130243303","08/02/2019","Starting and Developing Well","Sexual Health","R5060"
"Wolverhampton City Council","http://opendatacommunities.org/id/metropolitan-district-council/wolverhampton","710796","IR James Associates LTD","3989","144.40","Equipment - Purchase","130242078","20/02/2019","Cleaning","Cleaning of Buildings - General","R4000"
"Wolverhampton City Council","http://opendatacommunities.org/id/metropolitan-district-council/wolverhampton","710796","IR James Associates LTD","3989","159.80","Equipment - Purchase","130242078","20/02/2019","Cleaning","Cleaning of Buildings - General","R4000"
"Wolverhampton City Council","http://opendatacommunities.org/id/metropolitan-district-council/wolverhampton","710796","IR James Associates LTD","3639","50.86","Equipment - Purchase","130225017","27/02/2019","Cleaning","Cleaning of Buildings - General","R4000"
"Wolverhampton City Council","http://opendatacommunities.org/id/metropolitan-district-council/wolverhampton","710796","IR James Associates LTD","3639","88.92","Equipment - Purchase","130225017","27/02/2019","Cleaning","Cleaning of Buildings - General","R4000"
"Wolverhampton City Council","http://opendatacommunities.org/id/metropolitan-district-council/wolverhampton","710799","Chelsea & Westminster Hospitals","N0028512 GUM M7 18/19","225.29","TPP - Public Health Contracts","190561935","15/02/2019","Starting and Developing Well","Sexual Health","R5060"
"Wolverhampton City Council","http://opendatacommunities.org/id/metropolitan-district-council/wolverhampton","710799","Chelsea & Westminster Hospitals","N0029379 GUM NCA M8 18/19","313.99","TPP - Public Health Contracts","190561941","15/02/2019","Starting and Developing Well","Sexual Health","R5060"
"Wolverhampton City Council","http://opendatacommunities.org/id/metropolitan-district-council/wolverhampton","710799","Chelsea & Westminster Hospitals","N0027847 GUM M6 18/19","72.84","TPP - Public Health Contracts","190561936","15/02/2019","Starting and Developing Well","Sexual Health","R5060"
"Wolverhampton City Council","http://opendatacommunities.org/id/metropolitan-district-council/wolverhampton","710799","Chelsea & Westminster Hospitals","N0025450 GUM NCA M3 18/19","86.44","TPP - Public Health Contracts","190561942","15/02/2019","Starting and Developing Well","Sexual Health","R5060"
"Wolverhampton City Council","http://opendatacommunities.org/id/metropolitan-district-council/wolverhampton","710804","Worcester Health & Care","T029810 GUM NCA December 18","221.00","TPP - Public Health Contracts","190561940","15/02/2019","Starting and Developing Well","Sexual Health","R5060"
"Wolverhampton City Council","http://opendatacommunities.org/id/metropolitan-district-council/wolverhampton","710818","Benny Semp (Artist-Educator)","940B","112.50","Services - Professional Fees","130243305","22/02/2019","Visitor Economy","Art Galleries - Schools Art SLA Service","R4400"
"Wolverhampton City Council","http://opendatacommunities.org/id/metropolitan-district-council/wolverhampton","710828","Andrew Page","061511994","81.30","Equipment - Purchase","190556502","01/02/2019","Fleet Services","Fleet Management","R4000"
"Wolverhampton City Council","http://opendatacommunities.org/id/metropolitan-district-council/wolverhampton","710828","Andrew Page","061511994","29.95","Equipment - Purchase","190556502","01/02/2019","Fleet Services","Fleet Management","R4000"
"Wolverhampton City Council","http://opendatacommunities.org/id/metropolitan-district-council/wolverhampton","710828","Andrew Page","061514341","150.00","Equipment - Purchase","190556511","01/02/2019","Fleet Services","Fleet Management","R4000"
"Wolverhampton City Council","http://opendatacommunities.org/id/metropolitan-district-council/wolverhampton","710828","Andrew Page","061512662","113.10","Equipment - Purchase","190556504","01/02/2019","Fleet Services","Fleet Management","R4000"
"Wolverhampton City Council","http://opendatacommunities.org/id/metropolitan-district-council/wolverhampton","710828","Andrew Page","H096081","-7.84","Equipment - Purchase","190556543","01/02/2019","Fleet Services","Fleet Management","R4000"
"Wolverhampton City Council","http://opendatacommunities.org/id/metropolitan-district-council/wolverhampton","710828","Andrew Page","061517257","48.28","Equipment - Purchase","190567343","27/02/2019","Fleet Services","Fleet Management","R4000"
"Wolverhampton City Council","http://opendatacommunities.org/id/metropolitan-district-council/wolverhampton","710828","Andrew Page","061521270","275.00","Subscriptions","190567349","27/02/2019","Fleet Services","Fleet Management","R4701"
"Wolverhampton City Council","http://opendatacommunities.org/id/metropolitan-district-council/wolverhampton","710828","Andrew Page","061521270","675.00","Subscriptions","190567349","27/02/2019","Fleet Services","Fleet Management","R4701"
"Wolverhampton City Council","http://opendatacommunities.org/id/metropolitan-district-council/wolverhampton","710828","Andrew Page","061517405","7.00","Equipment - Purchase","190567344","27/02/2019","Fleet Services","Fleet Management","R4000"
"Wolverhampton City Council","http://opendatacommunities.org/id/metropolitan-district-council/wolverhampton","710828","Andrew Page","061517405","73.82","Equipment - Purchase","190567344","27/02/2019","Fleet Services","Fleet Management","R4000"
"Wolverhampton City Council","http://opendatacommunities.org/id/metropolitan-district-council/wolverhampton","710828","Andrew Page","061518011","34.10","Equipment - Purchase","190563439","20/02/2019","Fleet Services","Fleet Management","R4000"
"Wolverhampton City Council","http://opendatacommunities.org/id/metropolitan-district-council/wolverhampton","710828","Andrew Page","061515982","185.87","Equipment - Purchase","190567340","27/02/2019","Fleet Services","Fleet Management","R4000"
"Wolverhampton City Council","http://opendatacommunities.org/id/metropolitan-district-council/wolverhampton","710828","Andrew Page","061518478","39.48","Equipment - Purchase","190567347","27/02/2019","Fleet Services","Fleet Management","R4000"
"Wolverhampton City Council","http://opendatacommunities.org/id/metropolitan-district-council/wolverhampton","710828","Andrew Page","061517478","26.84","Equipment - Purchase","190567345","27/02/2019","Fleet Services","Fleet Management","R4000"
"Wolverhampton City Council","http://opendatacommunities.org/id/metropolitan-district-council/wolverhampton","710828","Andrew Page","061518210","9.76","Equipment - Purchase","190567346","27/02/2019","Fleet Services","Fleet Management","R4000"
"Wolverhampton City Council","http://opendatacommunities.org/id/metropolitan-district-council/wolverhampton","710828","Andrew Page","061518696","0.88","Equipment - Purchase","190567348","27/02/2019","Fleet Services","Fleet Management","R4000"
"Wolverhampton City Council","http://opendatacommunities.org/id/metropolitan-district-council/wolverhampton","710828","Andrew Page","061517156","6.34","Equipment - Purchase","190567342","27/02/2019","Fleet Services","Fleet Management","R4000"
"Wolverhampton City Council","http://opendatacommunities.org/id/metropolitan-district-council/wolverhampton","710828","Andrew Page","061516237","235.94","Equipment - Purchase","190567341","27/02/2019","Fleet Services","Fleet Management","R4000"
"Wolverhampton City Council","http://opendatacommunities.org/id/metropolitan-district-council/wolverhampton","710828","Andrew Page","061511947","7.84","Equipment - Purchase","190556500","01/02/2019","Fleet Services","Fleet Management","R4000"
"Wolverhampton City Council","http://opendatacommunities.org/id/metropolitan-district-council/wolverhampton","710828","Andrew Page","061511947","5.32","Equipment - Purchase","190556500","01/02/2019","Fleet Services","Fleet Management","R4000"
"Wolverhampton City Council","http://opendatacommunities.org/id/metropolitan-district-council/wolverhampton","710828","Andrew Page","061511947","56.46","Equipment - Purchase","190556500","01/02/2019","Fleet Services","Fleet Management","R4000"
"Wolverhampton City Council","http://opendatacommunities.org/id/metropolitan-district-council/wolverhampton","710828","Andrew Page","061513704","2.17","Equipment - Purchase","190556507","01/02/2019","Fleet Services","Fleet Management","R4000"
"Wolverhampton City Council","http://opendatacommunities.org/id/metropolitan-district-council/wolverhampton","710828","Andrew Page","061513485","79.40","Equipment - Purchase","190556505","01/02/2019","Fleet Services","Fleet Management","R4000"
"Wolverhampton City Council","http://opendatacommunities.org/id/metropolitan-district-council/wolverhampton","710828","Andrew Page","H097007.1","-38.94","Equipment - Purchase","190556545","01/02/2019","Fleet Services","Fleet Management","R4000"
"Wolverhampton City Council","http://opendatacommunities.org/id/metropolitan-district-council/wolverhampton","710828","Andrew Page","H097007.1","-29.95","Equipment - Purchase","190556545","01/02/2019","Fleet Services","Fleet Management","R4000"
"Wolverhampton City Council","http://opendatacommunities.org/id/metropolitan-district-council/wolverhampton","710828","Andrew Page","H097007","-4.46","Equipment - Purchase","190556544","01/02/2019","Fleet Services","Fleet Management","R4000"
"Wolverhampton City Council","http://opendatacommunities.org/id/metropolitan-district-council/wolverhampton","710828","Andrew Page","H097007","-35.36","Equipment - Purchase","190556544","01/02/2019","Fleet Services","Fleet Management","R4000"
"Wolverhampton City Council","http://opendatacommunities.org/id/metropolitan-district-council/wolverhampton","710828","Andrew Page","061511964","38.94","Equipment - Purchase","190556501","01/02/2019","Fleet Services","Fleet Management","R4000"
"Wolverhampton City Council","http://opendatacommunities.org/id/metropolitan-district-council/wolverhampton","710828","Andrew Page","061514493","79.82","Equipment - Purchase","190556512","01/02/2019","Fleet Services","Fleet Management","R4000"
"Wolverhampton City Council","http://opendatacommunities.org/id/metropolitan-district-council/wolverhampton","710828","Andrew Page","061514884","35.10","Equipment - Purchase","190556514","01/02/2019","Fleet Services","Fleet Management","R4000"
"Wolverhampton City Council","http://opendatacommunities.org/id/metropolitan-district-council/wolverhampton","710828","Andrew Page","061514331","5.08","Equipment - Purchase","190556510","01/02/2019","Fleet Services","Fleet Management","R4000"
"Wolverhampton City Council","http://opendatacommunities.org/id/metropolitan-district-council/wolverhampton","710828","Andrew Page","061513488","40.02","Equipment - Purchase","190556506","01/02/2019","Fleet Services","Fleet Management","R4000"
"Wolverhampton City Council","http://opendatacommunities.org/id/metropolitan-district-council/wolverhampton","710828","Andrew Page","061514180","24.60","Equipment - Purchase","190556508","01/02/2019","Fleet Services","Fleet Management","R4000"
"Wolverhampton City Council","http://opendatacommunities.org/id/metropolitan-district-council/wolverhampton","710828","Andrew Page","061514867","6.96","Equipment - Purchase","190556513","01/02/2019","Fleet Services","Fleet Management","R4000"
"Wolverhampton City Council","http://opendatacommunities.org/id/metropolitan-district-council/wolverhampton","710828","Andrew Page","061514300","7.00","Equipment - Purchase","190556509","01/02/2019","Fleet Services","Fleet Management","R4000"
"Wolverhampton City Council","http://opendatacommunities.org/id/metropolitan-district-council/wolverhampton","710828","Andrew Page","061514599","10.14","Equipment - Purchase","190557549","06/02/2019","Fleet Services","Fleet Management","R4000"
"Wolverhampton City Council","http://opendatacommunities.org/id/metropolitan-district-council/wolverhampton","710828","Andrew Page","061514599","3.40","Equipment - Purchase","190557549","06/02/2019","Fleet Services","Fleet Management","R4000"
"Wolverhampton City Council","http://opendatacommunities.org/id/metropolitan-district-council/wolverhampton","710828","Andrew Page","061513803","37.99","Equipment - Purchase","190557546","06/02/2019","Fleet Services","Fleet Management","R4000"
"Wolverhampton City Council","http://opendatacommunities.org/id/metropolitan-district-council/wolverhampton","710828","Andrew Page","061513978","8.54","Equipment - Purchase","190557548","06/02/2019","Fleet Services","Fleet Management","R4000"
"Wolverhampton City Council","http://opendatacommunities.org/id/metropolitan-district-council/wolverhampton","710828","Andrew Page","061513820","5.38","Equipment - Purchase","190557547","06/02/2019","Fleet Services","Fleet Management","R4000"
"Wolverhampton City Council","http://opendatacommunities.org/id/metropolitan-district-council/wolverhampton","710828","Andrew Page","061514696","10.14","Equipment - Purchase","190557550","06/02/2019","Fleet Services","Fleet Management","R4000"
"Wolverhampton City Council","http://opendatacommunities.org/id/metropolitan-district-council/wolverhampton","710828","Andrew Page","061514696","17.00","Equipment - Purchase","190557550","06/02/2019","Fleet Services","Fleet Management","R4000"
"Wolverhampton City Council","http://opendatacommunities.org/id/metropolitan-district-council/wolverhampton","710828","Andrew Page","061514696","8.34","Equipment - Purchase","190557550","06/02/2019","Fleet Services","Fleet Management","R4000"
"Wolverhampton City Council","http://opendatacommunities.org/id/metropolitan-district-council/wolverhampton","710828","Andrew Page","061514599","25.02","Equipment - Purchase","190557549","06/02/2019","Fleet Services","Fleet Management","R4000"
"Wolverhampton City Council","http://opendatacommunities.org/id/metropolitan-district-council/wolverhampton","710828","Andrew Page","061515634","8.08","Equipment - Purchase","190556516","01/02/2019","Fleet Services","Fleet Management","R4000"
"Wolverhampton City Council","http://opendatacommunities.org/id/metropolitan-district-council/wolverhampton","710828","Andrew Page","061512648","10.00","Equipment - Purchase","190556503","01/02/2019","Fleet Services","Fleet Management","R4000"
"Wolverhampton City Council","http://opendatacommunities.org/id/metropolitan-district-council/wolverhampton","710828","Andrew Page","061515043","8.54","Equipment - Purchase","190556515","01/02/2019","Fleet Services","Fleet Management","R4000"
"Wolverhampton City Council","http://opendatacommunities.org/id/metropolitan-district-council/wolverhampton","710828","Andrew Page","061516869","10.00","Equipment - Purchase","190563438","20/02/2019","Fleet Services","Fleet Management","R4000"
"Wolverhampton City Council","http://opendatacommunities.org/id/metropolitan-district-council/wolverhampton","710828","Andrew Page","061513334","65.00","Equipment - Purchase","190557545","06/02/2019","Fleet Services","Fleet Management","R4000"
"Wolverhampton City Council","http://opendatacommunities.org/id/metropolitan-district-council/wolverhampton","710828","Andrew Page","061513334","70.00","Equipment - Purchase","190557545","06/02/2019","Fleet Services","Fleet Management","R4000"
"Wolverhampton City Council","http://opendatacommunities.org/id/metropolitan-district-council/wolverhampton","710879","Kingswood Trust","511","288.00","Education trips, Holidays, Outings & Activities","130244350","20/02/2019","Director of Education","Director of Education","R4970"
"Wolverhampton City Council","http://opendatacommunities.org/id/metropolitan-district-council/wolverhampton","710879","Kingswood Trust","512","175.00","Training Expenses","130244351","20/02/2019","Audit Services","Health & Safety","R1650"
"Wolverhampton City Council","http://opendatacommunities.org/id/metropolitan-district-council/wolverhampton","710887","Deafblind Enablement LTD","19047D","5,016.00","Training Expenses","130242824","06/02/2019","Public Service Reform","Workforce Development","R1650"
"Wolverhampton City Council","http://opendatacommunities.org/id/metropolitan-district-council/wolverhampton","710928","Yoo Recruit LTD","CWC1033751","270.83","Agency Staff","190556025","01/02/2019","Mental Health Assesment & Care Management","Mental Health Assessment & Care Management","R1100"
"Wolverhampton City Council","http://opendatacommunities.org/id/metropolitan-district-council/wolverhampton","710928","Yoo Recruit LTD","CWC10337131","269.93","Agency Staff","190556105","01/02/2019","Leisure Services","Central Baths","R1100"
"Wolverhampton City Council","http://opendatacommunities.org/id/metropolitan-district-council/wolverhampton","710928","Yoo Recruit LTD","CWC10337185","274.95","Agency Staff","190556159","01/02/2019","Cleaning","Cleaning of Buildings - General","R1100"
"Wolverhampton City Council","http://opendatacommunities.org/id/metropolitan-district-council/wolverhampton","710928","Yoo Recruit LTD","CWC10337275","273.02","Agency Staff","190556249","01/02/2019","Adult Education","Learner Services","R1100"
"Wolverhampton City Council","http://opendatacommunities.org/id/metropolitan-district-council/wolverhampton","710928","Yoo Recruit LTD","CWC10337326","279.93","Agency Staff","190556300","01/02/2019","Leisure Services","WV Active Business Support","R1100"
"Wolverhampton City Council","http://opendatacommunities.org/id/metropolitan-district-council/wolverhampton","710928","Yoo Recruit LTD","CWC10337328","281.30","Agency Staff","190556302","01/02/2019","Leisure Services","WV Active Business Support","R1100"
"Wolverhampton City Council","http://opendatacommunities.org/id/metropolitan-district-council/wolverhampton","710928","Yoo Recruit LTD","CWC1033759","225.60","Agency Staff","190556033","01/02/2019","Local Economy","Blakenhall Community & Healthy Living Centre","R1100"
"Wolverhampton City Council","http://opendatacommunities.org/id/metropolitan-district-council/wolverhampton","710928","Yoo Recruit LTD","CWC10337145","266.03","Agency Staff","190556119","01/02/2019","Customer Services","City Direct","R1100"
"Wolverhampton City Council","http://opendatacommunities.org/id/metropolitan-district-council/wolverhampton","710928","Yoo Recruit LTD","CWC10337258","267.68","Agency Staff","190556232","01/02/2019","Adult Education","Access & FE","R1100"
"Wolverhampton City Council","http://opendatacommunities.org/id/metropolitan-district-council/wolverhampton","710928","Yoo Recruit LTD","CWC10337268","267.90","Agency Staff","190556242","01/02/2019","Adult Education","Communication Studies","R1100"
"Wolverhampton City Council","http://opendatacommunities.org/id/metropolitan-district-council/wolverhampton","710928","Yoo Recruit LTD","CWC10337297","257.20","Agency Staff","190556271","01/02/2019","Special Educational Needs","Special - Transport","R1100"
"Wolverhampton City Council","http://opendatacommunities.org/id/metropolitan-district-council/wolverhampton","710928","Yoo Recruit LTD","CWC10337298","257.20","Agency Staff","190556272","01/02/2019","Special Educational Needs","Special - Transport","R1100"
"Wolverhampton City Council","http://opendatacommunities.org/id/metropolitan-district-council/wolverhampton","710928","Yoo Recruit LTD","CWC10337325","253.27","Agency Staff","190556299","01/02/2019","Leisure Services","WV Active Business Support","R1100"
"Wolverhampton City Council","http://opendatacommunities.org/id/metropolitan-district-council/wolverhampton","710928","Yoo Recruit LTD","CWC10337324","225.04","Agency Staff","190556298","01/02/2019","Leisure Services","WV Active Business Support","R1100"
"Wolverhampton City Council","http://opendatacommunities.org/id/metropolitan-district-council/wolverhampton","710928","Yoo Recruit LTD","CWC1033741","227.40","Agency Staff","190556015","01/02/2019","Emergency Duty Team","Emergency Duty Team","R1100"
"Wolverhampton City Council","http://opendatacommunities.org/id/metropolitan-district-council/wolverhampton","710928","Yoo Recruit LTD","CWC1033735","252.00","Agency Staff","190556009","01/02/2019","Learning Disability Provider","Duke Street Bungalows","R1100"
"Wolverhampton City Council","http://opendatacommunities.org/id/metropolitan-district-council/wolverhampton","710928","Yoo Recruit LTD","CWC1033764","222.48","Agency Staff","190556038","01/02/2019","Local Economy","Global Budgets","R1100"
"Wolverhampton City Council","http://opendatacommunities.org/id/metropolitan-district-council/wolverhampton","710928","Yoo Recruit LTD","CWC10337105","227.88","Agency Staff","190556079","01/02/2019","Leisure Services","Bert Williams Leisure Centre","R1100"
"Wolverhampton City Council","http://opendatacommunities.org/id/metropolitan-district-council/wolverhampton","710928","Yoo Recruit LTD","CWC10337132","281.69","Agency Staff","190556106","01/02/2019","Leisure Services","Central Baths","R1100"
"Wolverhampton City Council","http://opendatacommunities.org/id/metropolitan-district-council/wolverhampton","710928","Yoo Recruit LTD","CWC10337144","251.23","Agency Staff","190556118","01/02/2019","Customer Services","City Direct","R1100"
"Wolverhampton City Council","http://opendatacommunities.org/id/metropolitan-district-council/wolverhampton","710928","Yoo Recruit LTD","CWC10337184","223.02","Agency Staff","190556158","01/02/2019","Cleaning","Cleaning of Buildings - General","R1100"
"Wolverhampton City Council","http://opendatacommunities.org/id/metropolitan-district-council/wolverhampton","710928","Yoo Recruit LTD","CWC10337241","-751.47","Agency Staff","190556215","01/02/2019","Adult Education","Admin & Support","R1100"
"Wolverhampton City Council","http://opendatacommunities.org/id/metropolitan-district-council/wolverhampton","710928","Yoo Recruit LTD","CWC10337198","251.23","Agency Staff","190556172","01/02/2019","ICTS","Customer Services","R1100"
"Wolverhampton City Council","http://opendatacommunities.org/id/metropolitan-district-council/wolverhampton","710928","Yoo Recruit LTD","CWC10337294","231.48","Agency Staff","190556268","01/02/2019","Special Educational Needs","Special - Transport","R1100"
"Wolverhampton City Council","http://opendatacommunities.org/id/metropolitan-district-council/wolverhampton","710928","Yoo Recruit LTD","CWC10337327","281.30","Agency Staff","190556301","01/02/2019","Leisure Services","WV Active Business Support","R1100"
"Wolverhampton City Council","http://opendatacommunities.org/id/metropolitan-district-council/wolverhampton","710928","Yoo Recruit LTD","CWC10337121","138.49","Agency Staff","190556095","01/02/2019","Leisure Services","Central Baths","R1100"
"Wolverhampton City Council","http://opendatacommunities.org/id/metropolitan-district-council/wolverhampton","710928","Yoo Recruit LTD","CWC1033799","137.70","Agency Staff","190556073","01/02/2019","Leisure Services","Bert Williams Leisure Centre","R1100"
"Wolverhampton City Council","http://opendatacommunities.org/id/metropolitan-district-council/wolverhampton","710928","Yoo Recruit LTD","CWC10337130","252.36","Agency Staff","190556104","01/02/2019","Leisure Services","Central Baths","R1100"
"Wolverhampton City Council","http://opendatacommunities.org/id/metropolitan-district-council/wolverhampton","710928","Yoo Recruit LTD","CWC10337228","231.84","Agency Staff","190556202","01/02/2019","Enterprise","Economic Development","R1100"
"Wolverhampton City Council","http://opendatacommunities.org/id/metropolitan-district-council/wolverhampton","710928","Yoo Recruit LTD","CWC10337290","135.03","Agency Staff","190556264","01/02/2019","Special Educational Needs","Special - Transport","R1100"
"Wolverhampton City Council","http://opendatacommunities.org/id/metropolitan-district-council/wolverhampton","710928","Yoo Recruit LTD","CWC10337289","128.60","Agency Staff","190556263","01/02/2019","Special Educational Needs","Special - Transport","R1100"
"Wolverhampton City Council","http://opendatacommunities.org/id/metropolitan-district-council/wolverhampton","710928","Yoo Recruit LTD","CWC10337320","137.70","Agency Staff","190556294","01/02/2019","Leisure Services","WV Active Business Support","R1100"
"Wolverhampton City Council","http://opendatacommunities.org/id/metropolitan-district-council/wolverhampton","710928","Yoo Recruit LTD","CWC10337321","140.65","Agency Staff","190556295","01/02/2019","Leisure Services","WV Active Business Support","R1100"
"Wolverhampton City Council","http://opendatacommunities.org/id/metropolitan-district-council/wolverhampton","710928","Yoo Recruit LTD","CWC1033726","116.55","Agency Staff","190556000","01/02/2019","Youth Offending","Youth Offending Team","R1100"
"Wolverhampton City Council","http://opendatacommunities.org/id/metropolitan-district-council/wolverhampton","710928","Yoo Recruit LTD","CWC1033778","110.79","Agency Staff","190556052","01/02/2019","Leisure Services","WV Active Catering","R1100"
"Wolverhampton City Council","http://opendatacommunities.org/id/metropolitan-district-council/wolverhampton","710928","Yoo Recruit LTD","CWC1033763","112.23","Agency Staff","190556037","01/02/2019","Local Economy","Global Budgets","R1100"
"Wolverhampton City Council","http://opendatacommunities.org/id/metropolitan-district-council/wolverhampton","710928","Yoo Recruit LTD","CWC10337119","112.86","Agency Staff","190556093","01/02/2019","Leisure Services","Central Baths","R1100"
"Wolverhampton City Council","http://opendatacommunities.org/id/metropolitan-district-council/wolverhampton","710928","Yoo Recruit LTD","CWC10337142","139.76","Agency Staff","190556116","01/02/2019","Customer Services","City Direct","R1100"
"Wolverhampton City Council","http://opendatacommunities.org/id/metropolitan-district-council/wolverhampton","710928","Yoo Recruit LTD","CWC10337191","160.16","Agency Staff","190556165","01/02/2019","Cleaning","External Cleaning","R1100"
"Wolverhampton City Council","http://opendatacommunities.org/id/metropolitan-district-council/wolverhampton","710928","Yoo Recruit LTD","CWC10337319","113.92","Agency Staff","190556293","01/02/2019","Leisure Services","WV Active Business Support","R1100"
"Wolverhampton City Council","http://opendatacommunities.org/id/metropolitan-district-council/wolverhampton","710928","Yoo Recruit LTD","CWC10337318","112.52","Agency Staff","190556292","01/02/2019","Leisure Services","WV Active Business Support","R1100"
"Wolverhampton City Council","http://opendatacommunities.org/id/metropolitan-district-council/wolverhampton","710928","Yoo Recruit LTD","CWC10337122","159.96","Agency Staff","190556096","01/02/2019","Leisure Services","Central Baths","R1100"
"Wolverhampton City Council","http://opendatacommunities.org/id/metropolitan-district-council/wolverhampton","710928","Yoo Recruit LTD","CWC10337197","157.00","Agency Staff","190556171","01/02/2019","Cleaning","Other Cleaning","R1100"
"Wolverhampton City Council","http://opendatacommunities.org/id/metropolitan-district-council/wolverhampton","710928","Yoo Recruit LTD","CWC10337265","175.15","Agency Staff","190556239","01/02/2019","Adult Education","Communication Studies","R1100"
"Wolverhampton City Council","http://opendatacommunities.org/id/metropolitan-district-council/wolverhampton","710928","Yoo Recruit LTD","CWC10337266","178.45","Agency Staff","190556240","01/02/2019","Adult Education","Communication Studies","R1100"
"Wolverhampton City Council","http://opendatacommunities.org/id/metropolitan-district-council/wolverhampton","710928","Yoo Recruit LTD","CWC10337267","178.45","Agency Staff","190556241","01/02/2019","Adult Education","Communication Studies","R1100"
"Wolverhampton City Council","http://opendatacommunities.org/id/metropolitan-district-council/wolverhampton","710928","Yoo Recruit LTD","CWC10337264","175.15","Agency Staff","190556238","01/02/2019","Adult Education","Communication Studies","R1100"
"Wolverhampton City Council","http://opendatacommunities.org/id/metropolitan-district-council/wolverhampton","710928","Yoo Recruit LTD","CWC10337292","184.65","Agency Staff","190556266","01/02/2019","Special Educational Needs","Special - Transport","R1100"
"Wolverhampton City Council","http://opendatacommunities.org/id/metropolitan-district-council/wolverhampton","710928","Yoo Recruit LTD","CWC10337337","184.44","Agency Staff","190556311","01/02/2019","The Hub","Payroll/HR","R1100"
"Wolverhampton City Council","http://opendatacommunities.org/id/metropolitan-district-council/wolverhampton","710928","Yoo Recruit LTD","CWC1033779","166.19","Agency Staff","190556053","01/02/2019","Leisure Services","WV Active Catering","R1100"
"Wolverhampton City Council","http://opendatacommunities.org/id/metropolitan-district-council/wolverhampton","710928","Yoo Recruit LTD","CWC1033734","169.75","Agency Staff","190556008","01/02/2019","Learning Disability Provider","Duke Street Bungalows","R1100"
"Wolverhampton City Council","http://opendatacommunities.org/id/metropolitan-district-council/wolverhampton","710928","Yoo Recruit LTD","CWC1033787","166.32","Agency Staff","190556061","01/02/2019","Leisure Services","Aldersley Leisure Village","R1100"
"Wolverhampton City Council","http://opendatacommunities.org/id/metropolitan-district-council/wolverhampton","710928","Yoo Recruit LTD","CWC10337123","172.50","Agency Staff","190556097","01/02/2019","Leisure Services","Central Baths","R1100"
"Wolverhampton City Council","http://opendatacommunities.org/id/metropolitan-district-council/wolverhampton","710928","Yoo Recruit LTD","CWC10337174","152.75","Agency Staff","190556148","01/02/2019","Cleaning","Cleaning of Buildings - General","R1100"
"Wolverhampton City Council","http://opendatacommunities.org/id/metropolitan-district-council/wolverhampton","710928","Yoo Recruit LTD","CWC10337175","152.75","Agency Staff","190556149","01/02/2019","Cleaning","Cleaning of Buildings - General","R1100"
"Wolverhampton City Council","http://opendatacommunities.org/id/metropolitan-district-council/wolverhampton","710928","Yoo Recruit LTD","CWC10337245","152.75","Agency Staff","190556219","01/02/2019","Adult Education","Site Services","R1100"
"Wolverhampton City Council","http://opendatacommunities.org/id/metropolitan-district-council/wolverhampton","710928","Yoo Recruit LTD","CWC10337322","171.00","Agency Staff","190556296","01/02/2019","Leisure Services","WV Active Business Support","R1100"
"Wolverhampton City Council","http://opendatacommunities.org/id/metropolitan-district-council/wolverhampton","710928","Yoo Recruit LTD","CWC10341201","3,188.15","Agency Staff","190559427","08/02/2019","ICTS","Application Management","R1100"
"Wolverhampton City Council","http://opendatacommunities.org/id/metropolitan-district-council/wolverhampton","710928","Yoo Recruit LTD","CWC10341225","2,001.60","Agency Staff","190559451","08/02/2019","Legal Services","Legal Services","R1100"
"Wolverhampton City Council","http://opendatacommunities.org/id/metropolitan-district-council/wolverhampton","710928","Yoo Recruit LTD","CWC10341320","140.65","Agency Staff","190559546","08/02/2019","Leisure Services","WV Active Business Support","R1100"
"Wolverhampton City Council","http://opendatacommunities.org/id/metropolitan-district-council/wolverhampton","710928","Yoo Recruit LTD","CWC1033776","151.20","Agency Staff","190556050","01/02/2019","Older People Provider Services","Bradley Lodge Resource Centre","R1100"
"Wolverhampton City Council","http://opendatacommunities.org/id/metropolitan-district-council/wolverhampton","710928","Yoo Recruit LTD","CWC10337172","146.64","Agency Staff","190556146","01/02/2019","Cleaning","Cleaning of Buildings - General","R1100"
"Wolverhampton City Council","http://opendatacommunities.org/id/metropolitan-district-council/wolverhampton","710928","Yoo Recruit LTD","CWC10337173","149.52","Agency Staff","190556147","01/02/2019","Cleaning","Cleaning of Buildings - General","R1100"
"Wolverhampton City Council","http://opendatacommunities.org/id/metropolitan-district-council/wolverhampton","710928","Yoo Recruit LTD","CWC10337291","146.52","Agency Staff","190556265","01/02/2019","Special Educational Needs","Special - Transport","R1100"
"Wolverhampton City Council","http://opendatacommunities.org/id/metropolitan-district-council/wolverhampton","710928","Yoo Recruit LTD","CWC10337426","151.41","Agency Staff","190556400","01/02/2019","Visitor Economy","VEC - Casual & Agency Staff","R1100"
"Wolverhampton City Council","http://opendatacommunities.org/id/metropolitan-district-council/wolverhampton","710928","Yoo Recruit LTD","CWC10337425","148.28","Agency Staff","190556399","01/02/2019","Visitor Economy","VEC - Casual & Agency Staff","R1100"
"Wolverhampton City Council","http://opendatacommunities.org/id/metropolitan-district-council/wolverhampton","710928","Yoo Recruit LTD","CWC1034179","157.00","Agency Staff","190559305","08/02/2019","Leisure Services","Aldersley Leisure Village","R1100"
"Wolverhampton City Council","http://opendatacommunities.org/id/metropolitan-district-council/wolverhampton","710928","Yoo Recruit LTD","CWC10341196","157.00","Agency Staff","190559422","08/02/2019","Cleaning","Other Cleaning","R1100"
"Wolverhampton City Council","http://opendatacommunities.org/id/metropolitan-district-council/wolverhampton","710928","Yoo Recruit LTD","CWC10341245","150.84","Agency Staff","190559471","08/02/2019","Adult Education","Continuing Education","R1100"
"Wolverhampton City Council","http://opendatacommunities.org/id/metropolitan-district-council/wolverhampton","710928","Yoo Recruit LTD","CWC10341279","157.54","Agency Staff","190559505","08/02/2019","Special Educational Needs","Special - Transport","R1100"
"Wolverhampton City Council","http://opendatacommunities.org/id/metropolitan-district-council/wolverhampton","710928","Yoo Recruit LTD","Consolidated76OR","189,476.41","Agency Staff","190555973","01/02/2019","Central Corporate Budgets","Yoo Recruit Payments","R1100"
"Wolverhampton City Council","http://opendatacommunities.org/id/metropolitan-district-council/wolverhampton","710928","Yoo Recruit LTD","CWC1033777","156.37","Agency Staff","190556051","01/02/2019","Older People Provider Services","Bradley Lodge Resource Centre","R1100"
"Wolverhampton City Council","http://opendatacommunities.org/id/metropolitan-district-council/wolverhampton","710928","Yoo Recruit LTD","CWC10337100","179.96","Agency Staff","190556074","01/02/2019","Leisure Services","Bert Williams Leisure Centre","R1100"
"Wolverhampton City Council","http://opendatacommunities.org/id/metropolitan-district-council/wolverhampton","710928","Yoo Recruit LTD","CWC10337248","150.84","Agency Staff","190556222","01/02/2019","Adult Education","Continuing Education","R1100"
"Wolverhampton City Council","http://opendatacommunities.org/id/metropolitan-district-council/wolverhampton","710928","Yoo Recruit LTD","CWC10337176","183.30","Agency Staff","190556150","01/02/2019","Cleaning","Cleaning of Buildings - General","R1100"
"Wolverhampton City Council","http://opendatacommunities.org/id/metropolitan-district-council/wolverhampton","710928","Yoo Recruit LTD","CWC10337177","183.30","Agency Staff","190556151","01/02/2019","Cleaning","Cleaning of Buildings - General","R1100"
"Wolverhampton City Council","http://opendatacommunities.org/id/metropolitan-district-council/wolverhampton","710928","Yoo Recruit LTD","CWC10337178","183.30","Agency Staff","190556152","01/02/2019","Cleaning","Cleaning of Buildings - General","R1100"
"Wolverhampton City Council","http://opendatacommunities.org/id/metropolitan-district-council/wolverhampton","710928","Yoo Recruit LTD","CWC10337179","183.30","Agency Staff","190556153","01/02/2019","Cleaning","Cleaning of Buildings - General","R1100"
"Wolverhampton City Council","http://opendatacommunities.org/id/metropolitan-district-council/wolverhampton","710928","Yoo Recruit LTD","CWC10337208","183.90","Agency Staff","190556182","01/02/2019","Markets","Shopmobility","R1100"
"Wolverhampton City Council","http://opendatacommunities.org/id/metropolitan-district-council/wolverhampton","710928","Yoo Recruit LTD","CWC10337209","183.90","Agency Staff","190556183","01/02/2019","Markets","Shopmobility","R1100"
"Wolverhampton City Council","http://opendatacommunities.org/id/metropolitan-district-council/wolverhampton","710928","Yoo Recruit LTD","CWC10337222","184.80","Agency Staff","190556196","01/02/2019","Public Service Reform","Workforce Development Team","R1100"
"Wolverhampton City Council","http://opendatacommunities.org/id/metropolitan-district-council/wolverhampton","710928","Yoo Recruit LTD","CWC10337196","183.30","Agency Staff","190556170","01/02/2019","Cleaning","Schools Cleaning","R1100"
"Wolverhampton City Council","http://opendatacommunities.org/id/metropolitan-district-council/wolverhampton","710928","Yoo Recruit LTD","Consolidated76RD","-189,476.41","Agency Staff","190555974","01/02/2019","Central Corporate Budgets","Yoo Recruit Payments","R1100"
"Wolverhampton City Council","http://opendatacommunities.org/id/metropolitan-district-council/wolverhampton","710928","Yoo Recruit LTD","CWC10337124","199.95","Agency Staff","190556098","01/02/2019","Leisure Services","Central Baths","R1100"
"Wolverhampton City Council","http://opendatacommunities.org/id/metropolitan-district-council/wolverhampton","710928","Yoo Recruit LTD","CWC10337136","194.56","Agency Staff","190556110","01/02/2019","Environmental Maintenance","Northicote Farm","R1100"
"Wolverhampton City Council","http://opendatacommunities.org/id/metropolitan-district-council/wolverhampton","710928","Yoo Recruit LTD","CWC10337137","190.80","Agency Staff","190556111","01/02/2019","Catering","Education Catering - General Overheads","R1100"
"Wolverhampton City Council","http://opendatacommunities.org/id/metropolitan-district-council/wolverhampton","710928","Yoo Recruit LTD","CWC10337101","188.40","Agency Staff","190556075","01/02/2019","Leisure Services","Bert Williams Leisure Centre","R1100"
"Wolverhampton City Council","http://opendatacommunities.org/id/metropolitan-district-council/wolverhampton","710928","Yoo Recruit LTD","CWC10337180","186.90","Agency Staff","190556154","01/02/2019","Cleaning","Cleaning of Buildings - General","R1100"
"Wolverhampton City Council","http://opendatacommunities.org/id/metropolitan-district-council/wolverhampton","710928","Yoo Recruit LTD","CWC10337181","186.90","Agency Staff","190556155","01/02/2019","Cleaning","Cleaning of Buildings - General","R1100"
"Wolverhampton City Council","http://opendatacommunities.org/id/metropolitan-district-council/wolverhampton","710928","Yoo Recruit LTD","CWC10337182","186.90","Agency Staff","190556156","01/02/2019","Cleaning","Cleaning of Buildings - General","R1100"
"Wolverhampton City Council","http://opendatacommunities.org/id/metropolitan-district-council/wolverhampton","710928","Yoo Recruit LTD","CWC10337125","199.95","Agency Staff","190556099","01/02/2019","Leisure Services","Central Baths","R1100"
"Wolverhampton City Council","http://opendatacommunities.org/id/metropolitan-district-council/wolverhampton","710928","Yoo Recruit LTD","CWC10337128","208.62","Agency Staff","190556102","01/02/2019","Leisure Services","Central Baths","R1100"
"Wolverhampton City Council","http://opendatacommunities.org/id/metropolitan-district-council/wolverhampton","710928","Yoo Recruit LTD","CWC10337103","201.15","Agency Staff","190556077","01/02/2019","Leisure Services","Bert Williams Leisure Centre","R1100"
"Wolverhampton City Council","http://opendatacommunities.org/id/metropolitan-district-council/wolverhampton","710928","Yoo Recruit LTD","CWC10337102","199.65","Agency Staff","190556076","01/02/2019","Leisure Services","Bert Williams Leisure Centre","R1100"
"Wolverhampton City Council","http://opendatacommunities.org/id/metropolitan-district-council/wolverhampton","710928","Yoo Recruit LTD","CWC10337138","209.14","Agency Staff","190556112","01/02/2019","Catering","Education Catering - General Overheads","R1100"
"Wolverhampton City Council","http://opendatacommunities.org/id/metropolitan-district-council/wolverhampton","710928","Yoo Recruit LTD","CWC10337183","198.58","Agency Staff","190556157","01/02/2019","Cleaning","Cleaning of Buildings - General","R1100"
"Wolverhampton City Council","http://opendatacommunities.org/id/metropolitan-district-council/wolverhampton","710928","Yoo Recruit LTD","CWC10337226","199.95","Agency Staff","190556200","01/02/2019","Visitor Economy","Education And Access","R1100"
"Wolverhampton City Council","http://opendatacommunities.org/id/metropolitan-district-council/wolverhampton","710928","Yoo Recruit LTD","CWC10337323","199.95","Agency Staff","190556297","01/02/2019","Leisure Services","WV Active Business Support","R1100"
"Wolverhampton City Council","http://opendatacommunities.org/id/metropolitan-district-council/wolverhampton","710928","Yoo Recruit LTD","CWC1033788","219.80","Agency Staff","190556062","01/02/2019","Leisure Services","Aldersley Leisure Village","R1100"
"Wolverhampton City Council","http://opendatacommunities.org/id/metropolitan-district-council/wolverhampton","710928","Yoo Recruit LTD","CWC10337126","203.28","Agency Staff","190556100","01/02/2019","Leisure Services","Central Baths","R1100"
"Wolverhampton City Council","http://opendatacommunities.org/id/metropolitan-district-council/wolverhampton","710928","Yoo Recruit LTD","CWC10337104","214.56","Agency Staff","190556078","01/02/2019","Leisure Services","Bert Williams Leisure Centre","R1100"
"Wolverhampton City Council","http://opendatacommunities.org/id/metropolitan-district-council/wolverhampton","710928","Yoo Recruit LTD","CWC10337249","206.50","Agency Staff","190556223","01/02/2019","Adult Education","Continuing Education","R1100"
"Wolverhampton City Council","http://opendatacommunities.org/id/metropolitan-district-council/wolverhampton","710928","Yoo Recruit LTD","CWC10337252","214.14","Agency Staff","190556226","01/02/2019","Adult Education","Education & Training","R1100"
"Wolverhampton City Council","http://opendatacommunities.org/id/metropolitan-district-council/wolverhampton","710928","Yoo Recruit LTD","CWC10337254","214.14","Agency Staff","190556228","01/02/2019","Adult Education","Access & FE","R1100"
"Wolverhampton City Council","http://opendatacommunities.org/id/metropolitan-district-council/wolverhampton","710928","Yoo Recruit LTD","CWC10337255","214.14","Agency Staff","190556229","01/02/2019","Adult Education","Access & FE","R1100"
"Wolverhampton City Council","http://opendatacommunities.org/id/metropolitan-district-council/wolverhampton","710928","Yoo Recruit LTD","CWC10337293","220.85","Agency Staff","190556267","01/02/2019","Special Educational Needs","Special - Transport","R1100"
"Wolverhampton City Council","http://opendatacommunities.org/id/metropolitan-district-council/wolverhampton","710928","Yoo Recruit LTD","CWC10337127","203.55","Agency Staff","190556101","01/02/2019","Leisure Services","Central Baths","R1100"
"Wolverhampton City Council","http://opendatacommunities.org/id/metropolitan-district-council/wolverhampton","710928","Yoo Recruit LTD","CWC10337129","233.28","Agency Staff","190556103","01/02/2019","Leisure Services","Central Baths","R1100"
"Wolverhampton City Council","http://opendatacommunities.org/id/metropolitan-district-council/wolverhampton","710928","Yoo Recruit LTD","CWC10337242","246.40","Agency Staff","190556216","01/02/2019","Adult Education","Admin & Support","R1100"
"Wolverhampton City Council","http://opendatacommunities.org/id/metropolitan-district-council/wolverhampton","710928","Yoo Recruit LTD","CWC10337250","249.83","Agency Staff","190556224","01/02/2019","Adult Education","Continuing Education","R1100"
"Wolverhampton City Council","http://opendatacommunities.org/id/metropolitan-district-council/wolverhampton","710928","Yoo Recruit LTD","CWC10337274","207.24","Agency Staff","190556248","01/02/2019","Adult Education","Learner Services","R1100"
"Wolverhampton City Council","http://opendatacommunities.org/id/metropolitan-district-council/wolverhampton","710928","Yoo Recruit LTD","CWC10337295","244.20","Agency Staff","190556269","01/02/2019","Special Educational Needs","Special - Transport","R1100"
"Wolverhampton City Council","http://opendatacommunities.org/id/metropolitan-district-council/wolverhampton","710928","Yoo Recruit LTD","CWC10337296","244.20","Agency Staff","190556270","01/02/2019","Special Educational Needs","Special - Transport","R1100"
"Wolverhampton City Council","http://opendatacommunities.org/id/metropolitan-district-council/wolverhampton","710928","Yoo Recruit LTD","CWC10337338","246.24","Agency Staff","190556312","01/02/2019","The Hub","Payroll/HR","R1100"
"Wolverhampton City Council","http://opendatacommunities.org/id/metropolitan-district-council/wolverhampton","710928","Yoo Recruit LTD","CWC1034152","12.60","Agency Staff","190559278","08/02/2019","Mental Health Assesment & Care Management","Mental Health Assessment & Care Management","R1100"
"Wolverhampton City Council","http://opendatacommunities.org/id/metropolitan-district-council/wolverhampton","710928","Yoo Recruit LTD","CWC10341339","13.77","Agency Staff","190559565","08/02/2019","Strengthening Families","CP Area 2 - Bilston/Rocket Pool","R1100"
"Wolverhampton City Council","http://opendatacommunities.org/id/metropolitan-district-council/wolverhampton","710928","Yoo Recruit LTD","CWC10341367","15.75","Agency Staff","190559593","08/02/2019","Strengthening Families","MASH","R1100"
"Wolverhampton City Council","http://opendatacommunities.org/id/metropolitan-district-council/wolverhampton","710928","Yoo Recruit LTD","CWC10337143","239.94","Agency Staff","190556117","01/02/2019","Customer Services","City Direct","R1100"
"Wolverhampton City Council","http://opendatacommunities.org/id/metropolitan-district-council/wolverhampton","710928","Yoo Recruit LTD","CWC10337215","232.48","Agency Staff","190556189","01/02/2019","Revenues & Benefits","Revenues","R1100"
"Wolverhampton City Council","http://opendatacommunities.org/id/metropolitan-district-council/wolverhampton","710928","Yoo Recruit LTD","CWC10337227","241.02","Agency Staff","190556201","01/02/2019","Visitor Economy","Bantock - Tea Rooms","R1100"
"Wolverhampton City Council","http://opendatacommunities.org/id/metropolitan-district-council/wolverhampton","710928","Yoo Recruit LTD","CWC10337256","231.99","Agency Staff","190556230","01/02/2019","Adult Education","Access & FE","R1100"
"Wolverhampton City Council","http://opendatacommunities.org/id/metropolitan-district-council/wolverhampton","710928","Yoo Recruit LTD","CWC10337257","231.99","Agency Staff","190556231","01/02/2019","Adult Education","Access & FE","R1100"
"Wolverhampton City Council","http://opendatacommunities.org/id/metropolitan-district-council/wolverhampton","710928","Yoo Recruit LTD","CWC10337311","232.40","Agency Staff","190556285","01/02/2019","Visitor Economy","Curatorial - Cultural Learning","R1100"
"Wolverhampton City Council","http://opendatacommunities.org/id/metropolitan-district-council/wolverhampton","710928","Yoo Recruit LTD","CWC1034148","5.40","Agency Staff","190559274","08/02/2019","Mental Health Assesment & Care Management","Mental Health Assessment & Care Management","R1100"
"Wolverhampton City Council","http://opendatacommunities.org/id/metropolitan-district-council/wolverhampton","710928","Yoo Recruit LTD","CWC1034149","5.40","Agency Staff","190559275","08/02/2019","Mental Health Assesment & Care Management","Mental Health Assessment & Care Management","R1100"
"Wolverhampton City Council","http://opendatacommunities.org/id/metropolitan-district-council/wolverhampton","710928","Yoo Recruit LTD","CWC1034145","3.60","Agency Staff","190559271","08/02/2019","Mental Health Assesment & Care Management","Mental Health Assessment & Care Management","R1100"
"Wolverhampton City Council","http://opendatacommunities.org/id/metropolitan-district-council/wolverhampton","710928","Yoo Recruit LTD","CWC1034146","3.60","Agency Staff","190559272","08/02/2019","Mental Health Assesment & Care Management","Mental Health Assessment & Care Management","R1100"
"Wolverhampton City Council","http://opendatacommunities.org/id/metropolitan-district-council/wolverhampton","710928","Yoo Recruit LTD","CWC103414","4.75","Agency Staff","190559230","08/02/2019","Children & Young People In Care","Fostering Team & Allowances","R1100"
"Wolverhampton City Council","http://opendatacommunities.org/id/metropolitan-district-council/wolverhampton","710928","Yoo Recruit LTD","CWC103415","4.75","Agency Staff","190559231","08/02/2019","Children & Young People In Care","Fostering Team & Allowances","R1100"
"Wolverhampton City Council","http://opendatacommunities.org/id/metropolitan-district-council/wolverhampton","710928","Yoo Recruit LTD","CWC10341154","559.02","Agency Staff","190559380","08/02/2019","Customer Services","City Direct","R1100"
"Wolverhampton City Council","http://opendatacommunities.org/id/metropolitan-district-council/wolverhampton","710928","Yoo Recruit LTD","CWC10341234","558.59","Agency Staff","190559460","08/02/2019","Licensing","Licensing - General","R1100"
"Wolverhampton City Council","http://opendatacommunities.org/id/metropolitan-district-council/wolverhampton","710928","Yoo Recruit LTD","CWC10341268","3.15","Agency Staff","190559494","08/02/2019","School Planning & Resources","Music Support Team","R1100"
"Wolverhampton City Council","http://opendatacommunities.org/id/metropolitan-district-council/wolverhampton","710928","Yoo Recruit LTD","CWC10341294","580.32","Agency Staff","190559520","08/02/2019","Governance Services","Scrutiny","R1100"
"Wolverhampton City Council","http://opendatacommunities.org/id/metropolitan-district-council/wolverhampton","710928","Yoo Recruit LTD","CWC10341352","559.00","Agency Staff","190559578","08/02/2019","Strengthening Families","CP Area 7 - Low Hill","R1100"
"Wolverhampton City Council","http://opendatacommunities.org/id/metropolitan-district-council/wolverhampton","710928","Yoo Recruit LTD","CWC1034112","753.53","Agency Staff","190559238","08/02/2019","Children & Young People In Care","Adoption and Residence Team & Allowances","R1100"
"Wolverhampton City Council","http://opendatacommunities.org/id/metropolitan-district-council/wolverhampton","710928","Yoo Recruit LTD","CWC1034125","738.68","Agency Staff","190559251","08/02/2019","Children & Young People In Care","Looked After Team 2","R1100"
"Wolverhampton City Council","http://opendatacommunities.org/id/metropolitan-district-council/wolverhampton","710928","Yoo Recruit LTD","CWC1034130","703.00","Agency Staff","190559256","08/02/2019","Adults Assessment & Care Management North","Learning Disabilities Assessment and Care Management","R1100"
"Wolverhampton City Council","http://opendatacommunities.org/id/metropolitan-district-council/wolverhampton","710928","Yoo Recruit LTD","CWC10341105","739.82","Agency Staff","190559331","08/02/2019","Leisure Services","Bert Williams Leisure Centre","R1100"
"Wolverhampton City Council","http://opendatacommunities.org/id/metropolitan-district-council/wolverhampton","710928","Yoo Recruit LTD","CWC10341155","759.24","Agency Staff","190559381","08/02/2019","Customer Services","City Direct","R1100"
"Wolverhampton City Council","http://opendatacommunities.org/id/metropolitan-district-council/wolverhampton","710928","Yoo Recruit LTD","CWC10341272","692.58","Agency Staff","190559498","08/02/2019","School Planning & Resources","Music Support Team","R1100"
"Wolverhampton City Council","http://opendatacommunities.org/id/metropolitan-district-council/wolverhampton","710928","Yoo Recruit LTD","CWC10341261","740.25","Agency Staff","190559487","08/02/2019","Adult Education","Communication Studies","R1100"
"Wolverhampton City Council","http://opendatacommunities.org/id/metropolitan-district-council/wolverhampton","710928","Yoo Recruit LTD","CWC10341347","736.43","Agency Staff","190559573","08/02/2019","Strengthening Families","CP Area 4- Bingley","R1100"
"Wolverhampton City Council","http://opendatacommunities.org/id/metropolitan-district-council/wolverhampton","710928","Yoo Recruit LTD","CWC10341332","729.96","Agency Staff","190559558","08/02/2019","Human Resources","HR Investigations","R1100"
"Wolverhampton City Council","http://opendatacommunities.org/id/metropolitan-district-council/wolverhampton","710928","Yoo Recruit LTD","CWC10341369","26.10","Agency Staff","190559595","08/02/2019","Strengthening Families","MASH","R1100"
"Wolverhampton City Council","http://opendatacommunities.org/id/metropolitan-district-council/wolverhampton","710928","Yoo Recruit LTD","CWC10341380","684.75","Agency Staff","190559606","08/02/2019","Enterprise","AIM for the Black Country shared costs","R1100"
"Wolverhampton City Council","http://opendatacommunities.org/id/metropolitan-district-council/wolverhampton","710928","Yoo Recruit LTD","CWC10341393","748.88","Agency Staff","190559619","08/02/2019","Adults Assessment & Care Management SLC","Supporting Life Choices","R1100"
"Wolverhampton City Council","http://opendatacommunities.org/id/metropolitan-district-council/wolverhampton","710928","Yoo Recruit LTD","CWC1034141","682.50","Agency Staff","190559267","08/02/2019","Learning Disability Provider","Duke Street Bungalows","R1100"
"Wolverhampton City Council","http://opendatacommunities.org/id/metropolitan-district-council/wolverhampton","710928","Yoo Recruit LTD","CWC1034143","570.00","Agency Staff","190559269","08/02/2019","Emergency Duty Team","Emergency Duty Team","R1100"
"Wolverhampton City Council","http://opendatacommunities.org/id/metropolitan-district-council/wolverhampton","710928","Yoo Recruit LTD","CWC10341206","612.35","Agency Staff","190559432","08/02/2019","Markets","Wolverhampton Indoor and Open Market","R1100"
"Wolverhampton City Council","http://opendatacommunities.org/id/metropolitan-district-council/wolverhampton","710928","Yoo Recruit LTD","CWC10341204","608.76","Agency Staff","190559430","08/02/2019","Environmental Maintenance","Parks - Ranger Service","R1100"
"Wolverhampton City Council","http://opendatacommunities.org/id/metropolitan-district-council/wolverhampton","710928","Yoo Recruit LTD","CWC10341207","599.77","Agency Staff","190559433","08/02/2019","Parking Services","Parking Enforcement","R1100"
"Wolverhampton City Council","http://opendatacommunities.org/id/metropolitan-district-council/wolverhampton","710928","Yoo Recruit LTD","CWC10341208","599.77","Agency Staff","190559434","08/02/2019","Parking Services","Parking Enforcement","R1100"
"Wolverhampton City Council","http://opendatacommunities.org/id/metropolitan-district-council/wolverhampton","710928","Yoo Recruit LTD","CWC10341238","609.07","Agency Staff","190559464","08/02/2019","Licensing","Licensing - Private Hire Vehicles","R1100"
"Wolverhampton City Council","http://opendatacommunities.org/id/metropolitan-district-council/wolverhampton","710928","Yoo Recruit LTD","CWC10341260","613.03","Agency Staff","190559486","08/02/2019","Adult Education","Communication Studies","R1100"
"Wolverhampton City Council","http://opendatacommunities.org/id/metropolitan-district-council/wolverhampton","710928","Yoo Recruit LTD","CWC10341331","660.44","Agency Staff","190559557","08/02/2019","Human Resources","HR Investigations","R1100"
"Wolverhampton City Council","http://opendatacommunities.org/id/metropolitan-district-council/wolverhampton","710928","Yoo Recruit LTD","CWC10341368","20.25","Agency Staff","190559594","08/02/2019","Strengthening Families","MASH","R1100"
"Wolverhampton City Council","http://opendatacommunities.org/id/metropolitan-district-council/wolverhampton","710928","Yoo Recruit LTD","CWC10341381","599.77","Agency Staff","190559607","08/02/2019","Skills","IMPACT","R1100"
"Wolverhampton City Council","http://opendatacommunities.org/id/metropolitan-district-council/wolverhampton","710928","Yoo Recruit LTD","CWC1034188","100.58","Agency Staff","190559314","08/02/2019","Leisure Services","Bert Williams Leisure Centre","R1100"
"Wolverhampton City Council","http://opendatacommunities.org/id/metropolitan-district-council/wolverhampton","710928","Yoo Recruit LTD","CWC10341263","99.28","Agency Staff","190559489","08/02/2019","Adult Education","Learner Services","R1100"
"Wolverhampton City Council","http://opendatacommunities.org/id/metropolitan-district-council/wolverhampton","710928","Yoo Recruit LTD","CWC10341255","535.35","Agency Staff","190559481","08/02/2019","Adult Education","Access & FE","R1100"
"Wolverhampton City Council","http://opendatacommunities.org/id/metropolitan-district-council/wolverhampton","710928","Yoo Recruit LTD","CWC10341259","535.35","Agency Staff","190559485","08/02/2019","Adult Education","Communication Studies","R1100"
"Wolverhampton City Council","http://opendatacommunities.org/id/metropolitan-district-council/wolverhampton","710928","Yoo Recruit LTD","CWC10341277","102.88","Agency Staff","190559503","08/02/2019","Special Educational Needs","Special - Transport","R1100"
"Wolverhampton City Council","http://opendatacommunities.org/id/metropolitan-district-council/wolverhampton","710928","Yoo Recruit LTD","CWC10341304","539.50","Agency Staff","190559530","08/02/2019","Visitor Economy","Curatorial - Cultural Learning","R1100"
"Wolverhampton City Council","http://opendatacommunities.org/id/metropolitan-district-council/wolverhampton","710928","Yoo Recruit LTD","CWC10341302","99.68","Agency Staff","190559528","08/02/2019","Visitor Economy","Civic Halls Non-Direct Event Management Account","R1100"
"Wolverhampton City Council","http://opendatacommunities.org/id/metropolitan-district-council/wolverhampton","710928","Yoo Recruit LTD","CWC10341366","11.85","Agency Staff","190559592","08/02/2019","Strengthening Families","MASH","R1100"
"Wolverhampton City Council","http://opendatacommunities.org/id/metropolitan-district-council/wolverhampton","710928","Yoo Recruit LTD","CWC10341387","1,214.71","Agency Staff","190559613","08/02/2019","Adults Assessment & Care Management West","Adult Services � West","R1100"
"Wolverhampton City Council","http://opendatacommunities.org/id/metropolitan-district-council/wolverhampton","710928","Yoo Recruit LTD","CWC10341388","1,214.71","Agency Staff","190559614","08/02/2019","Adults Assessment & Care Management West","Adult Services � West","R1100"
"Wolverhampton City Council","http://opendatacommunities.org/id/metropolitan-district-council/wolverhampton","710928","Yoo Recruit LTD","CWC10341389","1,214.71","Agency Staff","190559615","08/02/2019","Adults Assessment and Care Management MASH","Adult MASH","R1100"
"Wolverhampton City Council","http://opendatacommunities.org/id/metropolitan-district-council/wolverhampton","710928","Yoo Recruit LTD","CWC1034140","541.80","Agency Staff","190559266","08/02/2019","Learning Disability Provider","Duke Street Bungalows","R1100"
"Wolverhampton City Council","http://opendatacommunities.org/id/metropolitan-district-council/wolverhampton","710928","Yoo Recruit LTD","CWC1034111","543.60","Agency Staff","190559237","08/02/2019","Children & Young People In Care","Adoption and Residence Team & Allowances","R1100"
"Wolverhampton City Council","http://opendatacommunities.org/id/metropolitan-district-council/wolverhampton","710928","Yoo Recruit LTD","CWC1034110","9.45","Agency Staff","190559236","08/02/2019","Children & Young People In Care","Adoption and Residence Team & Allowances","R1100"
"Wolverhampton City Council","http://opendatacommunities.org/id/metropolitan-district-council/wolverhampton","710928","Yoo Recruit LTD","CWC1034123","9.45","Agency Staff","190559249","08/02/2019","Children & Young People In Care","Looked After Team 2","R1100"
"Wolverhampton City Council","http://opendatacommunities.org/id/metropolitan-district-council/wolverhampton","710928","Yoo Recruit LTD","CWC1034154","1,402.30","Agency Staff","190559280","08/02/2019","Mental Health Assesment & Care Management","Mental Health Assessment & Care Management","R1100"
"Wolverhampton City Council","http://opendatacommunities.org/id/metropolitan-district-council/wolverhampton","710928","Yoo Recruit LTD","CWC1034158","98.88","Agency Staff","190559284","08/02/2019","Local Economy","Global Budgets","R1100"
"Wolverhampton City Council","http://opendatacommunities.org/id/metropolitan-district-council/wolverhampton","710928","Yoo Recruit LTD","CWC1034187","98.48","Agency Staff","190559313","08/02/2019","Leisure Services","Bert Williams Leisure Centre","R1100"
"Wolverhampton City Council","http://opendatacommunities.org/id/metropolitan-district-council/wolverhampton","710928","Yoo Recruit LTD","CWC10341164","97.76","Agency Staff","190559390","08/02/2019","Cleaning","Cleaning of Buildings - General","R1100"
"Wolverhampton City Council","http://opendatacommunities.org/id/metropolitan-district-council/wolverhampton","710928","Yoo Recruit LTD","CWC10341392","9.90","Agency Staff","190559618","08/02/2019","Adults Assessment & Care Management SLC","Supporting Life Choices","R1100"
"Wolverhampton City Council","http://opendatacommunities.org/id/metropolitan-district-council/wolverhampton","710928","Yoo Recruit LTD","CWC10341395","1,368.00","Agency Staff","190559621","08/02/2019","Adults Assessment & Care Management SLC","Supporting Life Choices","R1100"
"Wolverhampton City Council","http://opendatacommunities.org/id/metropolitan-district-council/wolverhampton","710928","Yoo Recruit LTD","CWC10341396","1,402.30","Agency Staff","190559622","08/02/2019","Adults Assessment & Care Management SLC","Supporting Life Choices","R1100"
"Wolverhampton City Council","http://opendatacommunities.org/id/metropolitan-district-council/wolverhampton","710928","Yoo Recruit LTD","CWC1034150","6.75","Agency Staff","190559276","08/02/2019","Mental Health Assesment & Care Management","Mental Health Assessment & Care Management","R1100"
"Wolverhampton City Council","http://opendatacommunities.org/id/metropolitan-district-council/wolverhampton","710928","Yoo Recruit LTD","CWC1034147","5.40","Agency Staff","190559273","08/02/2019","Mental Health Assesment & Care Management","Mental Health Assessment & Care Management","R1100"
"Wolverhampton City Council","http://opendatacommunities.org/id/metropolitan-district-council/wolverhampton","710928","Yoo Recruit LTD","CWC103419","6.30","Agency Staff","190559235","08/02/2019","Children & Young People In Care","Adoption and Residence Team & Allowances","R1100"
